{"text_format":"1","workbook":"xlsx","n_sheets":11,"sheets":["Angaben zur Bestellung","Bestellschein","Sprachen","Mathematik","Natur,Mensch,Gesellschaft","Gestalten","Musik","Modul","Bewegung und Sport","Verschiedenes","Tabelle1"],"not_rendered":{"charts":0,"images":1,"macros":1,"external_links":0,"defined_names":18,"comments":0,"pivot_tables":0},"unopened":[],"bounds":{"document_bytes":16777216,"sheet_cells":100000,"rows_first":2000,"rows_last":500,"rows_between":2000,"halvings":0,"cell_chars":16384,"cell_head_chars":4096},"cells_cut":0,"cells_raw":0,"read":"whole","date_system":"1900"}

{"sheet":"Angaben zur Bestellung","index":0,"n_rows":33,"n_cols":2,"rows_kept":33,"cut":false,"hidden":false,"merged":[[6,0,6,4],[0,0,0,4],[21,0,21,1],[2,0,2,5],[5,0,5,4]]}
["In der vorliegenden Arbeitsmappe finden Sie die Bestellscheine zum Zyklus 2\nLehrmittelverzeichnis \n2019 / 2020\n"]
[]
["Die eingetragenen Bestellmengen in den einzelnen Arbeitsblättern werden direkt auf die\nArbeitsblätter in 'Bestellschein' übertragen. "]
[]
[]
[]
["Das Arbeitsblatt 'Bestellschein' dient nur der Übersicht und ist nicht editierbar. \nDieses Arbeitsblatt zieht alle eingegebenen Bestellmengen der einzelnen Fachbereichen zusammen. Bitte die Bestellmengen in den einzelnen Arbeitsblättern der Fachbereiche eintragen."]
[]
["Bitte geben Sie EINMALIG vor der Bestelleingabe die gewünschten Lieferdaten an:"]
[]
["Kundennummer:"]
["(falls vorhanden)"]
["Vorname und Name:"]
["Schulhaus und Stufe:"]
["Strasse:"]
["PLZ und Ort:"]
["Telefon:"]
["eMail:"]
[]
["Datum:","2019-05-03"]
[]
[]
[]
[]
[null,"Didaktisches Zentrum Uri"]
[null,"Kantonaler Lehrmittelverlag Uri"]
[null,"Schulhaus Florentini"]
[null,"Postfach 349"]
[null,"CH-6460 Altdorf"]
[]
[null,"Tel.: 041 / 870 80 12"]
[null,"Fax: 041 / 871 35 00"]
[null,"www.dzuri.ch"]

{"sheet":"Bestellschein","index":1,"n_rows":6,"n_cols":9,"rows_kept":6,"cut":false,"hidden":false,"merged":[[1,4,1,7],[2,4,2,7],[3,4,3,7]]}
[null,"Kundennummer",{"$f":"'Angaben zur Bestellung'!$B$11","v":0},null,null,null,"Datum:",{"$f":"'Angaben zur Bestellung'!B20","v":"2019-05-03"}]
[null,"Vorname & Name:",{"$f":"'Angaben zur Bestellung'!B13","v":0},"PlZ , Ort",{"$f":"'Angaben zur Bestellung'!B16","v":0}]
[null,"Schulhaus & Stufe:",{"$f":"'Angaben zur Bestellung'!B14","v":0},"Telefon",{"$f":"'Angaben zur Bestellung'!B17","v":0},null,null,null,"Gesamttotal"]
[null,"Strasse:",{"$f":"'Angaben zur Bestellung'!B15","v":0},"eMail:",{"$f":"'Angaben zur Bestellung'!B18","v":0},null,null,null,{"$f":"SUM(I7:I1000)","v":0}]
["Zuerst SPEICHERN, dann ausdrucken und senden!"]
["Kompetenzbereich","TNR","Artikeltitel","Verlag","Stufe","KTG","VKP","Menge","Betrag"]

{"sheet":"Sprachen","index":2,"n_rows":274,"n_cols":9,"rows_kept":274,"cut":false,"hidden":false,"merged":[[1,4,1,7],[2,4,2,7],[3,4,3,7]]}
[null,"Kundennummer",{"$f":"'Angaben zur Bestellung'!$B$11","v":0},null,null,null,"Datum:",{"$f":"'Angaben zur Bestellung'!B20","v":"2019-05-03"},"Sprachen"]
[null,"Vorname & Name:",{"$f":"'Angaben zur Bestellung'!B13","v":0},"PlZ , Ort",{"$f":"'Angaben zur Bestellung'!B16","v":0},null,null,null,{"$f":"SUM(I7:I933)","v":0}]
[null,"Schulhaus & Stufe:",{"$f":"'Angaben zur Bestellung'!B14","v":0},"Telefon",{"$f":"'Angaben zur Bestellung'!B17","v":0},null,null,null,"Gesamttotal"]
[null,"Strasse:",{"$f":"'Angaben zur Bestellung'!B15","v":0},"eMail:",{"$f":"'Angaben zur Bestellung'!B18","v":0},null,null,null,{"$f":"Bestellschein!I4","v":0}]
[]
["Kompetenzbereich","TNR","Artikeltitel","Verlag","Stufe","KTG","VKP","Menge","Betrag"]
["Deutsch 3-6","P01.2195","Grundbausteine der Rechtschreibung, Gesamtband","Klett",null,"f",31.5,null,{"$f":"G7*H7","v":0}]
["Deutsch 3-6","P01.2196","Grundbausteine, Basiskurs","Klett","3./4.","f",21.5,null,{"$f":"G8*H8","v":0}]
["Deutsch 3-6","P01.2197","Grundbausteine, Aufbaukurs","Klett","5./6.","f",18.899999999999999,null,0]
["Deutsch 3-6","P01.2198","Grundbausteine, Handbuch","Klett","3.-6.","f",59,null,0]
["Deutsch 3-6","P01.2200","Grundbausteine, Karteikartenset","Klett","3.-6.","f",16,null,0]
["Deutsch 3-7","P01.2201","Grundbausteine, Karteikartenset DaZ","Klett","3.-6.","f",16,null,0]
["Deutsch 3-6","P01.2206","AdL mit den Sprachstarken","Klett",null,"f",39,null,0]
["Deutsch 3-6","P01.2190","10x10 Leseanregungen","Erle",null,"f",19,null,0]
["Deutsch 3-6","P01.2191","10x10 Textzugänge","Erle",null,"f",19,null,0]
["Deutsch 3-6","P01.2192","10x10 Spiele für den Sprachunterricht","Erle",null,"f",19,null,0]
["Deutsch 3-6","P01.2193","10x10 Schreibanregungen","Erle",null,"f",19,null,0]
["Deutsch 3-6","P90.3012","Mit Lernlandkarten unterrichten und lernen","Schulverlag+","1.-6.","f",38,null,0]
["Deutsch 3-6","P90.3013","Lernlandkarte Deutsch 3/4","Schulverlag+","3.-4.","f",11.5,null,0]
["Deutsch 3-6","P90.3014","Lernlandkarte Deutsch 4-6","Schulverlag+","4.-6.","f",11.5,null,0]
[]
["Deutsch Integrierte Förderung","P01.3004","Einsterns Schwester 3, 4 Themenhefte","Cornelsen","3.","f",25.9,null,0]
["Deutsch Integrierte Förderung","P01.3005","Einsterns Schwester 3, Handreichungen","Cornelsen","3.","f",49.4,null,0]
["Deutsch Integrierte Förderung","P01.3006","Einsterns Schwester 4, 4 Themenhefte","Cornelsen","4.","f",25.6,null,0]
["Deutsch Integrierte Förderung","P01.3007","Einsterns Schwester 4, Handreichungen","Cornelsen","4.","f",48.8,null,0]
["Deutsch Integrierte Förderung","P01.3008","Stark in Deutsch, Grundkurs Rechtschreiben","Schroedel","5./6.","f",10.9,null,0]
[]
["Deutsch 3","P04.1200","Das Lesebuch","Schulverlag+","2./3.","f",23,null,0]
["Deutsch 3","P04.1201","Das Lesebuch, Kommentar","Schulverlag+","2./3.","f",78,null,0]
["Deutsch 3","P05.1127","ohrwärts (Literarisches Hörverstehen)","LVSO","3./4.","f",44.7,null,0]
["Deutsch 3","P02.1732","Lesen. Das Training 1, Mappe","Schulverlag+","1.-3.","f",23.6,null,0]
["Deutsch 3","P02.1733","Lesen. Das Training 1, Kommentar","Schulverlag+","1.-3.","f",15.6,null,0]
["Deutsch 3","P05.1750","Lesepaket Tiere, Mappe","Schulverlag+","3./4.","f",25,null,0]
["Deutsch 3","P05.1751","Lesepaket Tiere, Kommentar mit CD","Schulverlag+","3./4.","f",58,null,0]
["Deutsch 3","P05.1755","Lesepaket Freundschaft, Mappe","Schulverlag+","3./4.","f",25,null,0]
["Deutsch 3","P05.1756","Lesepaket Freundschaft, Kommentar mit CD","Schulverlag+","3./4.","f",58,null,0]
[]
["Deutsch 3","P05.2500","Die Sprachstarken 3, Sprachbuch","Klett",null,"o",29,null,0]
["Deutsch 3","P05.2501","Die Sprachstarken 3, Arbeitsheft mit Online-Lizenz","Klett",null,"o",20.5,null,0]
["Deutsch 3","P05.2502","Die Sprachstarken 3, Kommentar","Klett",null,"o",85,null,0]
["Deutsch 3","P05.2503","Die Sprachstarken 3, Audio-CD's","Klett",null,"o",33,null,0]
["Deutsch 3","P04.2604","Die Sprachstarken 2/3, Karteikarten","Klett",null,"f",33,null,0]
["Deutsch 3","P05.2507","Die Sprachstarken 3, Handreichungen DaZ","Klett",null,"f",24.5,null,0]
["Deutsch 3"]
["Deutsch 3","P05.2600","Übungsfolge, Rechtschreibregeln 3","Schulverlag+","3.","f",6.8,null,0]
["Deutsch 3","P05.2601","Übungsfolge, Kommentar 3","Schulverlag+","3.","f",10.5,null,0]
["Deutsch 3","P05.2603","Merkheft, Rechtschreiben und Grammatik","Schulverlag+","3.-6.","f",8.9,null,0]
["Deutsch 3","P05.2604","Merkheft, Kommentar","Schulverlag+","3.-6.","f",12.5,null,0]
[]
["Deutsch 4","P06.1325","Federleicht & vogelfrei","Schulverlag+",null,"f",39.9,null,0]
["Deutsch 4","P06.1326","Federleicht & vogelfrei, Kommentar","Schulverlag+",null,"f",94,null,0]
["Deutsch 4","P05.1127","ohrwärts (Literarisches Hörverstehen)","LVSO","3./4.","f",44.7,null,0]
["Deutsch 4","P06.1330","Lesen. Das Training 2, Mappe","Schulverlag+","4.-6.","f",23.6,null,0]
["Deutsch 4","P06.1331","Lesen. Das Training 2, Kommentar","Schulverlag+","4.-6.","f",15.6,null,0]
["Deutsch 4","P05.1750","Lesepaket Tiere, Mappe","Schulverlag+","3./4.","f",25,null,0]
["Deutsch 4","P05.1751","Lesepaket Tiere, Kommentar mit CD","Schulverlag+","3./4.","f",58,null,0]
[]
["Deutsch 4","P06.2500","Die Sprachstarken 4, Sprachbuch","Klett",null,"o",29,null,0]
["Deutsch 4","P06.2501","Die Sprachstarken 4, Arbeitsheft mit Online-Lizenz","Klett",null,"o",20.5,null,0]
["Deutsch 4","P06.2502","Die Sprachstarken 4, Kommentar","Klett",null,"o",85,null,0]
["Deutsch 4","P06.2503","Die Sprachstarken 4, CD's","Klett",null,"o",33,null,0]
["Deutsch 4","P06.2504","Die Sprachstarken 4-6, Karteikarten","Klett",null,"f",36,null,0]
["Deutsch 4","P06.2505","Die Sprachstarken 4, Plakat","Klett",null,"f",0,null,0]
["Deutsch 4","P06.2507","Die Sprachstarken 4, Handreichungen DaZ","Klett",null,"f",24.5,null,{"$f":"G64*H64","v":0}]
[]
["Deutsch 4","P06.2603","Übungsfolge, Rechtschreibregeln 4","Schulverlag+","4.","f",8.5,null,0]
["Deutsch 4","P06.2604","Übungsfolge, Kommentar 4","Schulverlag+","4.","f",12,null,0]
["Deutsch 4","P05.2603","Merkheft, Rechtschreiben und Grammatik","Schulverlag+","3.-6.","f",8.9,null,0]
["Deutsch 4","P05.2604","Merkheft, Kommentar","Schulverlag+","3.-6.","f",12.5,null,0]
["Deutsch 4","P06.2600","Richtig Deutsch 1, Arbeitsheft","LMVZ","4.","f",14.1,null,0]
["Deutsch 4","P06.2601","Richtig Deutsch 1, Lösungsheft","LMVZ","4.","f",8.5,null,0]
[]
["Schreiben 1-4","P10.1614","Poster zur Deutschschweizer Basisschrift","Schubi","1.-4.","f",33.4,null,0]
["Schreiben 1-4","P10.1615","Weitere Verbindungen","Schubi","3.","f",9.8000000000000007,null,0]
["Schreiben 1-4","P10.1616","Weitere Buchstabenfolgen","Schubi","3./4.","f",9.5,null,0]
["Schreiben 1-4","P10.1617","Meine Handschrift","Schubi","3./4.","f",9.8000000000000007,null,0]
["Schreiben 1-4","P10.1604","Basilo 3, Schreibheft","Ingold","3./4.","f",9.6999999999999993,null,0]
[null,null,null,null,null,null,null,null,0]
["Schreiben 1-4","P10.1514","ABC 3, Schreibheft für Rechtshänder","LMVZ","2./3.","f",11.4,null,0]
["Schreiben 1-4","P10.1515","ABC 3, Schreibheft für Rechts- und Linkshänder","LMVZ","2./3.","f",11.4,null,0]
["Schreiben 1-4","P10.1516","ABC 3, Schreibheft für Linkshänder","LMVZ","2./3.","f",11.4,null,0]
["Schreiben 1-4","P10.1517","ABC 1-3, Plakat Basisschrift","LMVZ","1.-3.","f",19.8,null,0]
[null,null,null,null,null,null,null,null,0]
["Schreiben 1-4","P10.1800","Unterwegs zur persönlichen Handschrift (neu)","LVLU","KG-4.","a",59,null,0]
["Schreiben 1-4","P10.1801","Unterwegs zur persönlichen Handschrift, Zusatz","LVLU","KG-4.","a",10,null,0]
["Schreiben 1-4","P10.1803","Arbeitsheft Verbindungen","LVLU","3./4.","f",8.4,null,0]
["Schreiben 1-4","P10.1805","Basisschrift, Massstab 30 cm (Set à 10 Ex.)","LVLU","KG-4.","f",12,null,0]
[]
["Deutsch 5","P07.1535","Anderswie und anderswo, Lesebuch","Schulverlag+",null,"f",39.9,null,0]
["Deutsch 5","P07.1536","Anderswie und anderswo, Kommentar","Schulverlag+",null,"f",94,null,0]
["Deutsch 5","P06.1330","Lesen. Das Training 2, Mappe","Schulverlag+","4.-6.","f",23.6,null,0]
["Deutsch 5","P06.1331","Lesen. Das Training 2, Kommentar","Schulverlag+","4.-6.","f",15.6,null,0]
[]
["Deutsch 5","P07.2500","Die Sprachstarken 5, Sprachbuch","Klett",null,"o",29,null,0]
["Deutsch 5","P07.2501","Die Sprachstarken 5, Arbeitsheft mit Online-Lizenz","Klett",null,"o",20.5,null,0]
["Deutsch 5","P07.2502","Die Sprachstarken 5, Kommentar","Klett",null,"o",85,null,0]
["Deutsch 5","P07.2503","Die Sprachstarken 5, CD's","Klett",null,"o",33,null,0]
["Deutsch 5","P06.2504","Die Sprachstarken 4-6, Karteikarten","Klett",null,"f",36,null,0]
["Deutsch 5","P07.2505","Die Sprachstarken 5/6, Plakate","Klett",null,"f",0,null,0]
["Deutsch 5","P07.2507","Die Sprachstarken 5, Handreichungen DaZ","Klett",null,"f",24.5,null,0]
[]
["Deutsch 5","P05.2603","Merkheft, Rechtschreiben und Grammatik","Schulverlag+","3.-6.","f",8.9,null,{"$f":"G102*H102","v":0}]
["Deutsch 5","P05.2604","Merkheft, Kommentar","Schulverlag+","3.-6.","f",12.5,null,0]
["Deutsch 5","P07.2600","Richtig Deutsch 2, Arbeitsheft","LMVZ","5.","f",14.1,null,0]
["Deutsch 5","P07.2601","Richtig Deutsch 2, Lösungsheft","LMVZ","5.","f",8.5,null,0]
[]
["Deutsch 6","P08.1777","mittendrin & hochhinaus, Lesebuch","Schulverlag+",null,"f",39.9,null,0]
["Deutsch 6","P08.1778","mittendrin & hochhinaus, Kommentar","Schulverlag+",null,"f",94,null,0]
["Deutsch 6","P06.1330","Lesen. Das Training 2, Mappe","Schulverlag+","4.-6.","f",23.6,null,0]
["Deutsch 6","P06.1331","Lesen. Das Training 2, Kommentar","Schulverlag+","4.-6.","f",15.6,null,0]
[]
["Deutsch 6","P08.2500","Die Sprachstarken 6, Sprachbuch","Klett",null,"o",29,null,0]
["Deutsch 6","P08.2501","Die Sprachstarken 6, Arbeitsheft mit Online-Lizenz","Klett",null,"o",20.5,null,0]
["Deutsch 6","P08.2502","Die Sprachstarken 6, Kommentar","Klett",null,"o",85,null,0]
["Deutsch 6","P08.2503","Die Sprachstarken 6, CD's","Klett",null,"o",33,null,0]
["Deutsch 6","P06.2504","Die Sprachstarken 4-6, Karteikarten","Klett",null,"f",36,null,0]
["Deutsch 6","P07.2505","Die Sprachstarken 5/6, Plakate","Klett",null,"f",0,null,0]
["Deutsch 6","P08.2507","Die Sprachstarken 6, Handreichungen DaZ","Klett",null,"f",24.5,null,0]
[]
["Deutsch 6","P05.2603","Merkheft, Rechtschreiben und Grammatik","Schulverlag+","3.-6.","f",8.9,null,0]
["Deutsch 6","P05.2604","Merkheft, Kommentar","Schulverlag+","3.-6.","f",12.5,null,0]
["Deutsch 6","P08.2600","Richtig Deutsch 3, Arbeitsheft","LMVZ","6.","f",14.1,null,0]
["Deutsch 6","P08.2601","Richtig Deutsch 3, Lösungsheft","LMVZ","6.","f",8.5,null,0]
[]
["Deutsch, Wörterbücher 3-6","P09.2300","Die Wörterkiste, Wörterbuch","LMVZ","3.-5.","f",11.9,null,0]
["Deutsch, Wörterbücher 3-6","P09.2301","Öffne die Wörterkiste, Arbeitsheft","LMVZ","3.-5.","f",8.1999999999999993,null,0]
[]
["Deutsch, Wörterbücher 3-6","P09.2209","Duden : Die deutsche Rechtschreibung","SBZ","ab 6.","f",36.5,null,0]
["Deutsch, Wörterbücher 3-6","P09.1392","Schweizer Schülerduden","LMVZ","ab 5.","o",16.7,null,0]
["Deutsch, Wörterbücher 3-6","P09.1393","Duden: Sag es besser! Wörterbuch","LMVZ","3.-6.","f",16.7,null,0]
[]
["Deutsch als Zweitsprache","P11.3020","Hoppla 3, Schülerbuch","LMVZ","2./3.","f",25.5,null,0]
["Deutsch als Zweitsprache","P11.3021","Hoppla 3, Arbeitsheft A","LMVZ","2./3.","f",9.9,null,0]
["Deutsch als Zweitsprache","P11.3022","Hoppla 3, Arbeitsheft B","LMVZ","2./3.","f",9.9,null,0]
["Deutsch als Zweitsprache","P11.3023","Hoppla 3, Audio-CD's","LMVZ","2./3.","f",32,null,0]
["Deutsch als Zweitsprache","P11.3024","Hoppla 3, Kommentar mit CR","LMVZ","2./3.","f",58,null,0]
["Deutsch als Zweitsprache","P11.3025","Hoppla 4, Schülerbuch","LMVZ","3./4.","f",25.5,null,0]
["Deutsch als Zweitsprache","P11.3026","Hoppla 4, Arbeitsheft A","LMVZ","3./4.","f",9.9,null,0]
["Deutsch als Zweitsprache","P11.3027","Hoppla 4, Arbeitsheft B","LMVZ","3./4.","f",9.9,null,0]
["Deutsch als Zweitsprache","P11.3028","Hoppla 4, Audio-CD's","LMVZ","3./4.","f",32,null,0]
["Deutsch als Zweitsprache","P11.3029","Hoppla 4, Kommentar mit CR","LMVZ","3./4.","f",58,null,0]
["Deutsch als Zweitsprache","P11.3040","Hoppla 1-4, Lieder-CD ","LMVZ","KG-3.","f",54,null,0]
["Deutsch als Zweitsprache","P11.3050","Hoppla 1/2, Poster (16 St.) ","LMVZ","KG-3.","f",24,null,0]
[]
["Deutsch als Zweitsprache","P11.3100","Pipapo 1, Textbuch","LMVZ","4.-6.","f",25,null,0]
["Deutsch als Zweitsprache","P11.3101","Pipapo 1, Arbeitsbuch","LMVZ","4.-6.","f",17.5,null,0]
["Deutsch als Zweitsprache","P11.3102","Pipapo 1, Kommentar","LMVZ","4.-6.","f",51,null,0]
["Deutsch als Zweitsprache","P11.3103","Pipapo 1, CD's mit Hörtexten","LMVZ","4.-6.","f",38,null,0]
["Deutsch als Zweitsprache","P11.3104","Pipapo 1, CR","LMVZ","4.-6.","f",49.5,null,0]
["Deutsch als Zweitsprache","P11.3110","Pipapo 2, Textbuch","LMVZ","4.-6.","f",25,null,0]
["Deutsch als Zweitsprache","P11.3111","Pipapo 2, Arbeitsbuch","LMVZ","4.-6.","f",17.5,null,0]
["Deutsch als Zweitsprache","P11.3112","Pipapo 2, Kommentar","LMVZ","4.-6.","f",51,null,0]
["Deutsch als Zweitsprache","P11.3113","Pipapo 2, CD's mit Hörtexten","LMVZ","4.-6.","f",38,null,0]
["Deutsch als Zweitsprache","P11.3114","Pipapo 2, CR","LMVZ","4.-6.","f",49.5,null,0]
["Deutsch als Zweitsprache","P11.3120","Pipapo 3, Textbuch","LMVZ","4.-6.","f",25,null,0]
["Deutsch als Zweitsprache","P11.3121","Pipapo 3, Arbeitsbuch","LMVZ","4.-6.","f",17.5,null,0]
["Deutsch als Zweitsprache","P11.3122","Pipapo 3, Kommentar","LMVZ","4.-6.","f",51,null,0]
["Deutsch als Zweitsprache","P11.3123","Pipapo 3, CD mit Hörtexten","LMVZ","4.-6.","f",38,null,0]
["Deutsch als Zweitsprache","P11.3124","Pipapo 3, CR","LMVZ","4.-6.","f",49.5,null,0]
[]
["Deutsch als Zweitsprache","P11.3300","Wörterbrücke, Albanisch","LMVZ","1.-9.","f",12.9,null,{"$f":"G161*H161","v":0}]
["Deutsch als Zweitsprache","P11.3301","Wörterbrücke, Türkisch","LMVZ","1.-9.","f",12.9,null,0]
["Deutsch als Zweitsprache","P11.3302","Wörterbrücke, Portugiesisch","LMVZ","1.-9.","f",12.9,null,0]
["Deutsch als Zweitsprache","P11.3303","Wörterbrücke, Serb./Kroat./Bosn.","LMVZ","1.-9.","f",12.9,null,0]
["Deutsch als Zweitsprache","P11.3310","Grundschulwörterbuch Deutsch","Langenscheidt","1.-4.","f",21.5,null,0]
["Deutsch als Zweitsprache","P11.3311","Taschenwörterbuch Deutsch als Fremdsprache","Langenscheidt","ab 2.","f",27.9,null,0]
["Deutsch als Zweitsprache","P11.3400","Dingsda, Grundwortschatz DaZ","Schulverlag+","1.-4.","f",29.8,null,0]
["Deutsch als Zweitsprache","P11.3401","Fachdingsda, Grundwortschatz DaZ","Schulverlag+","5.-9.","f",29.8,null,0]
["Deutsch als Zweitsprache","P11.3403","Multidingsda, Bilderbuch mit CD","LMVZ","KG-4.","f",39.6,null,0]
["Deutsch als Zweitsprache","P11.3500","Deine Sprache - meine Sprache","LMVZ","1.-9.","f",39.200000000000003,null,0]
["Deutsch als Zweitsprache","P11.3505","DaZ unterrichten, Hörverstehen und Sprechen","Schulverlag+","1.-9.","f",42,null,0]
[]
["Deutsch als Zweitsprache","P05.2507","Die Sprachstarken 3, Handreichungen DaZ","Klett",null,"f",24.5,null,0]
["Deutsch als Zweitsprache","P06.2507","Die Sprachstarken 4, Handreichungen DaZ","Klett",null,"f",24.5,null,0]
["Deutsch als Zweitsprache","P07.2507","Die Sprachstarken 5, Handreichungen DaZ","Klett",null,"f",24.5,null,0]
["Deutsch als Zweitsprache","P08.2507","Die Sprachstarken 6, Handreichungen DaZ","Klett",null,"f",24.5,null,0]
[]
["Deutsch als Zweitsprache","P11.4000","Sprachgewandt, Test-Set 2-9","LMVZ","2.-9.","f*",57.2,null,0]
["Deutsch als Zweitsprache","P11.4001","Sprachgewandt, Einschätzungsbogen 2-9","LMVZ","2.-9.","f*",12.5,null,0]
["Deutsch als Zweitsprache","P11.4003","Sprachgewandt, Lesetest 3/4","LMVZ","3./4.","f*",17.7,null,0]
["Deutsch als Zweitsprache","P11.4004","Sprachgewandt, Lesetest 5/6","LMVZ","5./6.","f*",17.7,null,0]
[]
[]
[]
["Italienisch 5/6","P12.4000","Grandi amici 1, Libro per lo studente","Ingold",null,"o",19.2,null,0]
["Italienisch 5/6","P12.4001","Grandi amici 1, Libro degli esercizi","Ingold",null,"o",11.1,null,0]
["Italienisch 5/6","P12.4002","Grandi amici 1, Guida","Ingold",null,"o",24.8,null,0]
["Italienisch 5/6","P12.4003","Grandi amici 1, Audio-CD","Ingold",null,"o",30.95,null,0]
["Italienisch 5/6","P12.4010","Grandi amici 2, Libro per lo studente","Ingold",null,"o",19.2,null,0]
["Italienisch 5/6","P12.4011","Grandi amici 2, Libro degli esercizi","Ingold",null,"o",11.1,null,0]
["Italienisch 5/6","P12.4012","Grandi amici 2, Guida","Ingold",null,"o",24.8,null,0]
["Italienisch 5/6","P12.4013","Grandi amici 2, Audio-CD","Ingold",null,"o",30.95,null,0]
["Italienisch 5/6","P12.4020","Grandi amici 3, Libro per lo studente","Ingold",null,"f",19.2,null,0]
["Italienisch 5/6","P12.4021","Grandi amici 3, Libro degli esercizi","Ingold",null,"f",11.1,null,0]
["Italienisch 5/6","P12.4022","Grandi amici 3, Guida","Ingold",null,"f",24.8,null,0]
["Italienisch 5/6","P12.4023","Grandi amici 3, Audio-CD","Ingold",null,"f",30.95,null,0]
["Italienisch 5/6","P12.4030","Grandi amici 1-3, DVD ","Ingold",null,"f",50.3,null,0]
["Italienisch 5/6","P12.4031","Grandi amici 1-3, Lernzielkontrolle","Ingold",null,"f",7.2,null,0]
[]
["Italienisch 5/6","P12.4050","Grandi amici 1-3, Schede riassuntive","LVGR",null,"f",15,null,0]
["Italienisch 5/6","P12.4051","Grandi amici 1-3, Vocabolario per bambini","LVGR",null,"o",4,null,0]
["Italienisch 5/6","P12.4052","Grandi amici 1-3, Vocabolario per insegnanti","LVGR",null,"f",15,null,0]
["Italienisch 5/6","P12.4053","Grandi amici 1-3, Grammatica per insegnanti","LVGR",null,"o",20,null,0]
["Italienisch 5/6","P12.4054","Grandi amici 1-3, Scoprimao la grammatica","LVGR",null,"f",30,null,0]
["Italienisch 5/6","P12.4055","Il mistero di Icima, Letture","LVGR",null,"f",5.4,null,0]
["Italienisch 5/6","P12.4056","Il mistero di Icima, Soluzioni","LVGR",null,"f",7.2,null,0]
["Italienisch 5/6","P12.4057","Ascuola in intaliano, Proposte d'immersione","LVGR",null,"f",30,null,0]
["Italienisch 5/6","P12.4058","Sofia ha fatto un sogno, Letture","LVGR",null,"f",5.4,null,0]
["Italienisch 5/6","P12.4059","Sofia ha fatto un sogno, Guida per insegnati","LVGR",null,"f",30,null,0]
["Italienisch 5/6","P12.4060","Ancora a scuola in italiano","LVGR",null,"f",30,null,0]
[]
["Italienisch 5/6","P12.7283","PONS Basiswörterbuch","Klett",null,"f",12,null,0]
["Italienisch 5/6","P12.7370","PONS Kompaktwörterbuch mit Online-WB","Klett",null,"f",31,null,0]
["Italienisch 5/6","P12.8618","ELI Vocabolario illustrato italiano","Ingold",null,"f",26.5,null,0]
[]
[]
[]
["Englisch 3","P13.3020","Duden Grundschulwörterbuch mit CR","SBZ","3.-5.","f",13.9,null,{"$f":"G218*H218","v":0}]
["Englisch 3","P13.3030","ELI illustrierter Wortschatz mit CR","Klett","3.-5.","f",20.6,null,0]
[]
["Englisch 3","P13.5000","Young World 1, Pupil's Book","Klett","3.","o",28,null,{"$f":"G221*H221","v":0}]
["Englisch 3","P13.5001","Young World 1, Activity Book","Klett","3.","o",19,null,0]
["Englisch 3","P13.5002","Young World 1, Teacher's Book","Klett","3.","o",79,null,0]
["Englisch 3","P13.5003","Young World 1, digitale Ausgabe für LP","Klett","3.","f",59,null,0]
["Englisch 3","P13.5004","Young World 1, Audio-CD","Klett","3.","o",32,null,0]
["Englisch 3","P13.5005","Young World 1, Word Cards","Klett","3.","o",12.5,null,0]
["Englisch 3-6","P13.5011","Wörterbox leer, passend zu den Word Cards","Klett","3.-6.","f",2.5,null,{"$f":"G227*H227","v":0}]
["Englisch 3","P13.5006","Young World 1, Lernkontrollen","Klett","3.","o",42,null,0]
["Englisch 3","P13.5007","Young World 1, Posters","Klett","3.","f",38,null,0]
["Englisch 3","P13.5008","Young World 1, Flash Cards","Klett","3.","f",49,null,0]
["Englisch 3","P13.5009","Young World 1, Stories","Klett","3.","f",7.5,null,0]
["Englisch 3","P13.5010","Young World 1, Stories (10er-Paket)","Klett","3.","f",50,null,0]
[]
["Englisch 4","P13.5100","Young World 2, Pupil's Book","Klett","4.","f",28,null,{"$f":"G234*H234","v":0}]
["Englisch 4","P13.5101","Young World 2, Activity Book","Klett","4.","f",19,null,0]
["Englisch 4","P13.5102","Young World 2, Teacher's Book","Klett","4.","f",79,null,0]
["Englisch 4","P13.5103","Young World 2, digitale Ausgabe für LP","Klett","4.","f",59,null,0]
["Englisch 4","P13.5104","Young World 2, Audio-CD","Klett","4.","f",32,null,0]
["Englisch 4","P13.5105","Young World 2, Word Cards","Klett","4.","f",12.5,null,0]
["Englisch 3-6","P13.5011","Wörterbox leer, passend zu den Word Cards","Klett","3.-6.","f",2.5,null,0]
["Englisch 4","P13.5106","Young World 2, Lernkontrollen","Klett","4.","f",42,null,0]
["Englisch 4","P13.5107","Young World 2, Posters","Klett","4.","f",38,null,0]
["Englisch 4","P13.5108","Young World 2, Flash Cards","Klett","4.","f",49,null,0]
["Englisch 4","P13.5109","Young World 2, Stories","Klett","4.","f",7.5,null,0]
["Englisch 4","P13.5110","Young World 2, Stories (10er-Paket)","Klett","4.","f",50,null,0]
[]
["Englisch 4","P14.4000","Super Bus 3, Pupil's Book","Macmillan",null,"o",15.8,null,0]
["Englisch 4","P14.4001","Super Bus 3, Activity Book","Macmillan",null,"o",15.8,null,0]
["Englisch 4","P14.4006","Super Bus 3, Teacher's Book","Macmillan",null,"o",34.9,null,0]
["Englisch 4","P14.4007","Super Bus 3, Resource Pack","Macmillan",null,"o",48.4,null,0]
["Englisch 4","P14.4008","Super Bus 3, Audio CD","Macmillan",null,"o",43,null,0]
["Englisch 4","P13.3027","Super Bus 3, CR","Macmillan",null,"f",17.899999999999999,null,0]
["Englisch 4","P13.3019","Super Bus 3+4, Video Book","Macmillan",null,"f",31,null,0]
[]
["Englisch 5+6","P15.6000","Messages 1, Student's Book","Cambridge",null,"o",36,null,0]
["Englisch 5+6","P15.6001","Messages 1, Workbook","Cambridge",null,"o",21.75,null,0]
["Englisch 5+6","P15.6002","Messages 1, Teacher's Book","Cambridge",null,"o",42.55,null,0]
["Englisch 5+6","P15.6003","Messages 1, Resource Pack","Cambridge",null,"o",57,null,0]
["Englisch 5+6","P15.6007","Messages 1, Teacher's Resource CR","Cambridge",null,"f",121.3,null,0]
["Englisch 5+6","P15.6004","Messages 1, Class Audio CD's","Cambridge",null,"o",74.7,null,0]
["Englisch 5+6","P15.6005","Messages 1+2, DVD","Cambridge",null,"o",187.3,null,0]
["Englisch 5+6","P15.6006","Messages 1, Companion","Cambridge",null,"f",11.5,null,0]
["Englisch 5+6","P15.7000","Top deck 1, Pupil's Book","Macmillan",null,"f",22.9,null,0]
["Englisch 5+6","P15.7001","Top deck 1, Activity Book","Macmillan",null,"f",22.5,null,0]
["Englisch 5+6","P15.7002","Top deck 1, Teacher's Book","Macmillan",null,"f",47.5,null,0]
["Englisch 5+6","P15.7005","Top deck 1, Class CD's","Macmillan",null,"f",57.9,null,0]
["Englisch 5+6","P15.7010","Top deck 2, Pupil's Book","Macmillan",null,"f",22.9,null,0]
["Englisch 5+6","P15.7011","Top deck 2, Activity Book","Macmillan",null,"f",22.5,null,0]
["Englisch 5+6","P15.7012","Top deck 2, Teacher's Book","Macmillan",null,"f",47.5,null,0]
["Englisch 5+6","P15.7015","Top deck 2, Class CD's","Macmillan",null,"f",57.9,null,0]
["Englisch 5+6","O13.6003","PONS Schulwörterbuch (Buch und App)","Klett","5.-9.","f",16.8,null,0]
["Englisch 5+6","P15.6020","Rocking around the globe, Songbook","LMVZ",null,"f",19.399999999999999,null,0]
["Englisch 5+6","P15.6021","Rocking around the globe, CD","LMVZ",null,"f",35.4,null,0]
["Englisch 5+6","P15.6022","Classroom Language (2 Poster)","LMVZ","4.-6.","f",16.2,null,0]

{"sheet":"Mathematik","index":3,"n_rows":171,"n_cols":9,"rows_kept":171,"cut":false,"hidden":false,"merged":[[1,4,1,7],[2,4,2,7],[3,4,3,7]]}
[null,"Kundennummer",{"$f":"'Angaben zur Bestellung'!$B$11","v":0},null,null,null,"Datum:",{"$f":"'Angaben zur Bestellung'!B20","v":"2019-05-03"},"Mathematik"]
[null,"Vorname & Name:",{"$f":"'Angaben zur Bestellung'!B13","v":0},"PlZ , Ort",{"$f":"'Angaben zur Bestellung'!B16","v":0},null,null,null,{"$f":"SUM(I7:I1005)","v":0}]
[null,"Schulhaus & Stufe:",{"$f":"'Angaben zur Bestellung'!B14","v":0},"Telefon",{"$f":"'Angaben zur Bestellung'!B17","v":0},null,null,null,"Gesamttotal"]
[null,"Strasse:",{"$f":"'Angaben zur Bestellung'!B15","v":0},"eMail:",{"$f":"'Angaben zur Bestellung'!B18","v":0},null,null,null,{"$f":"Bestellschein!I4","v":0}]
[]
["Kompetenzbereich","TNR","Artikeltitel","Verlag","Stufe","KTG","VKP","Menge","Betrag"]
["Mathematik 3","P22.6600","Schweizer Zahlenbuch 3, Schulbuch","Klett",null,"o",30,null,{"$f":"G7*H7","v":0}]
["Mathematik 3","P22.6601","Schweizer Zahlenbuch 3, Arbeitsheft","Klett",null,"o",12.4,null,{"$f":"G8*H8","v":0}]
["Mathematik 3","P22.6602","Schweizer Zahlenbuch 3, Lösungen","Klett",null,"o",24.7,null,0]
["Mathematik 3","P22.6603","Schweizer Zahlenbuch 3, Begleitband","Klett",null,"o",67,null,0]
["Mathematik 3","P22.6604","Schweizer Zahlenbuch 3, Arbeitsmittel sep.","Klett",null,"f",29.9,null,0]
[]
["Mathematik 3","P22.6400","Mathematik 3, Themenbuch","LMVZ",null,"f",18.8,null,0]
["Mathematik 3","P22.6401","Mathematik 3, Set mit 5 Arbeitsheften","LMVZ",null,"f",18.8,null,0]
["Mathematik 3","P22.6402","Mathematik 3, Handbuch","LMVZ",null,"f",80.099999999999994,null,0]
["Mathematik 3","P22.6403","Mathematik 3, Lösungen","LMVZ",null,"f",27.1,null,0]
["Mathematik 3","P22.6404","Mathematik 3, CR Arbeitsblätter","LMVZ",null,"f",25,null,0]
[]
["Mathematik 3-6","P22.6500","Mathwelt 2, 2 Themenbücher","Schulverlag+","3.-6.","f",79,null,{"$f":"G19*H19","v":0}]
["Mathematik 3+4","P22.6501","Mathwelt 2, 2 Arbeitshefte 3/4","Schulverlag+","3./4.","f",29,null,0]
["Mathematik 3+4","P22.6504","Mathwelt 2, Lösungen zu den Arbeitsheften 3/4","Schulverlag+","3./4.","f",45,null,{"$f":"G21*H21","v":0}]
["Mathematik 5+6","P22.6502","Mathwelt 2, 2 Arbeitshefte 5/6","Schulverlag+","5./6.","f",29,null,0]
["Mathematik 5+6","P22.6505","Mathwelt 2, Lösungen zu den Arbeitsheften 5/6","Schulverlag+","5./6.","f",45,null,{"$f":"G23*H23","v":0}]
["Mathematik 3-6","P22.6503","Mathwelt 2, Kommentar","Schulverlag+","3.-6.","f",189,null,0]
["Mathematik 3-6","P29.3510","Produkte im Matheunterricht begleiten und bewerten","Schulverlag+","3.-6.","f",45,null,0]
[]
["Mathematik 3","P22.6510","Mathematik einundzwanzig 3, Schulbuch","Schubi",null,"f",24.9,null,{"$f":"G27*H27","v":0}]
["Mathematik 3","P22.6511","Mathematik einundzwanzig 3, Arbeitsheft 1+2","Schubi",null,"f",13.9,null,{"$f":"G28*H28","v":0}]
["Mathematik 3","P22.6512","Mathematik einundzwanzig 3, Begleitband","Schubi",null,"f",49.9,null,0]
["Mathematik 3","P22.6513","Mathematik einundzwanzig 3, Tests und Vorlagen","Schubi",null,"f",29.9,null,0]
[]
["Mathematik 3","P22.6237","Einstern 3, Schuber mit 6 Themenheften","Cornelsen CH",null,"f",46.5,null,0]
["Mathematik 3","P22.1366","Mehrsystemblöcke Dienes Grundsortiment    ","Schubi",null,"f",59.9,null,0]
[]
[]
["Mathematik 4","P23.6600","Schweizer Zahlenbuch 4, Schulbuch","Klett",null,"o",30,null,0]
["Mathematik 4","P23.6601","Schweizer Zahlenbuch 4, Arbeitsheft","Klett",null,"o",12.4,null,0]
["Mathematik 4","P23.6602","Schweizer Zahlenbuch 4, Lösungen","Klett",null,"o",24.7,null,0]
["Mathematik 4","P23.6603","Schweizer Zahlenbuch 4, Begleitband","Klett",null,"o",67,null,0]
[]
["Mathematik 4","P23.6290","Mathematik 4, Themenbuch","LMVZ",null,"f",20.8,null,0]
["Mathematik 4","P23.6291","Mathematik 4, Set mit 5 Arbeitsheften","LMVZ",null,"f",18.8,null,0]
["Mathematik 4","P23.6292","Mathematik 4, Handbuch","LMVZ",null,"f",83.2,null,0]
["Mathematik 4","P23.6293","Mathematik 4, Lösungen","LMVZ",null,"f",31.2,null,0]
["Mathematik 4","P23.6294","Mathematik 4, CR Arbeitsblätter","LMVZ",null,"f",27.1,null,0]
[]
["Mahtematik 4","P23.6300","Einstern 4, Schuber mit 6 Themenheften","Cornelsen CH",null,"f",46.5,null,{"$f":"G47*H47","v":0}]
[]
[]
["Mathematik 5","P24.6600","Schweizer Zahlenbuch 5, Schulbuch","Klett",null,"a",29,null,0]
["Mathematik 5","P24.6601","Schweizer Zahlenbuch 5, Arbeitsheft","Klett",null,"a",14.9,null,0]
["Mathematik 5","P24.6602","Schweizer Zahlenbuch 5, Lösungen","Klett",null,"a",24,null,0]
["Mathematik 5","P24.6603","Schweizer Zahlenbuch 5, Begleitband","Klett",null,"a",69,null,0]
["Mathematik 5","P24.6604","Schweizer Zahlenbuch 5, Arbeitsmittel sep.","Klett",null,"f",29,null,0]
[]
["Mathematik 5","P24.6610","Schweizer Zahlenbuch 5, Schulbuch (neu)","Klett",null,"a",29,null,0]
["Mathematik 5","P24.6611","Schweizer Zahlenbuch 5, Arbeitsheft (neu)","Klett",null,"a",16.899999999999999,null,0]
["Mathematik 5","P24.6612","Schweizer Zahlenbuch 5, Lösungen (neu)","Klett",null,"a",24,null,0]
["Mathematik 5","P24.6613","Schweizer Zahlenbuch 5, Begleitband (neu)","Klett",null,"a",79,null,0]
["Mathematik 5","P24.6614","Schweizer Zahlenbuch 5, Digitale Ausgabe für LP","Klett",null,"f",49,null,0]
[]
["Mathematik 5","P24.6310","Mathematik 5, Themenbuch","LMVZ",null,"f",20.8,null,0]
["Mathematik 5","P24.6311","Mathematik 5, Set mit 5 Arbeitsheften","LMVZ",null,"f",18.8,null,0]
["Mathematik 5","P24.6312","Mathematik 5, Handbuch","LMVZ",null,"f",83.2,null,0]
["Mathematik 5","P24.6313","Mathematik 5, Lösungen","LMVZ",null,"f",31.2,null,0]
["Mathematik 5","P24.6314","Mathematik 5, CR Arbeitsblätter","LMVZ",null,"f",27.1,null,0]
[]
["Mathematik 5","P24.1711","Einstern 5, Schuber  mit 5 Themenheften","Cornelsen CH",null,"f",46.5,null,{"$f":"G68*H68","v":0}]
["Mathematik 5","P24.1712","Geometrische Körper (10 Stück)    ","Schubi",null,"f",32.950000000000003,null,0]
["Mathematik 5","P24.1717","Geometrische Füllkörper (6 Stück)","Schubi",null,"f",68.95,null,0]
["Mathematik 5","P24.1718","Kubikdezimeter    ","Schubi",null,"f",39.950000000000003,null,0]
[]
[]
["Mathematik 6","P25.6600","Schweizer Zahlenbuch 6, Schulbuch","Klett",null,"a",29,null,0]
["Mathematik 6","P25.6601","Schweizer Zahlenbuch 6, Arbeitsheft","Klett",null,"a",14.9,null,0]
["Mathematik 6","P25.6602","Schweizer Zahlenbuch 6, Lösungen","Klett",null,"a",24,null,0]
["Mathematik 6","P25.6603","Schweizer Zahlenbuch 6, Begleitband","Klett",null,"a",69,null,0]
["Mathematik 6","P25.6604","Schweizer Zahlenbuch 6, Arbeitsmittel sep.","Klett",null,"f",29,null,0]
[]
["Mathematik 6","P25.6610","Schweizer Zahlenbuch 6, Schulbuch (neu)","Klett",null,"a",29,null,{"$f":"G80*H80","v":0}]
["Mathematik 6","P25.6611","Schweizer Zahlenbuch 6, Arbeitsheft (neu)","Klett",null,"a",16.899999999999999,null,0]
["Mathematik 6","P25.6612","Schweizer Zahlenbuch 6, Lösungen (neu)","Klett",null,"a",24,null,0]
["Mathematik 6","P25.6613","Schweizer Zahlenbuch 6, Begleitband (neu)","Klett",null,"a",79,null,0]
["Mathematik 6","P25.6614","Schweizer Zahlenbuch 6, Digitale Ausgabe für LP","Klett",null,"f",49,null,0]
[]
["Mathematik 6","P25.6298","Mathematik 6, Themenbuch","LMVZ",null,"f",20.8,null,0]
["Mathematik 6","P25.6299","Mathematik 6, Set mit 5 Arbeitsheften","LMVZ",null,"f",18.8,null,0]
["Mathematik 6","P25.6300","Mathematik 6, Handbuch","LMVZ",null,"f",83.2,null,0]
["Mathematik 6","P25.6301","Mathematik 6, Lösungen","LMVZ",null,"f",31.2,null,{"$f":"G89*H89","v":0}]
["Mathematik 6","P25.6302","Mathematik 6, CR Arbeitsblätter","LMVZ",null,"f",27.1,null,0]
[]
[]
["Übungs-/Arbeitsmaterial zum Schweizer Zahlenbuch","P26.6602","Blitzrechenkartei 3","Klett",null,"f",33,null,0]
["Übungs-/Arbeitsmaterial zum Schweizer Zahlenbuch","P26.6603","Blitzrechenkartei 4","Klett",null,"f",33,null,0]
["Übungs-/Arbeitsmaterial zum Schweizer Zahlenbuch","P26.6604","Karteikartenbox leer (4er Pack)","Klett",null,"f",16.5,null,0]
["Übungs-/Arbeitsmaterial zum Schweizer Zahlenbuch","P26.6610","Fördern und Diagnose mit dem Blitzrechenkurs","Klett","1.-4.","f",16.7,null,0]
["Übungs-/Arbeitsmaterial zum Schweizer Zahlenbuch","P26.6701","Sachrechnen im Kopf 3/4, Kartei Grössen","Klett",null,"f",38.9,null,0]
["Übungs-/Arbeitsmaterial zum Schweizer Zahlenbuch","P26.6721","Poster Zahlenbuch 5","Klett",null,"f",19.899999999999999,null,0]
["Übungs-/Arbeitsmaterial zum Schweizer Zahlenbuch","P26.6722","Poster Zahlenbuch 6","Klett",null,"f",19.899999999999999,null,0]
["Übungs-/Arbeitsmaterial zum Schweizer Zahlenbuch","P26.6723","Kartenspiele zum Einmaleins","Klett",null,"f",15,null,0]
[]
["Übungs-/Arbeitsmaterial zum Schweizer Zahlenbuch","P26.6726","Probieren und Kombinieren 3, Igelaufgaben","Klett","3.","f",7.8,null,0]
["Übungs-/Arbeitsmaterial zum Schweizer Zahlenbuch","P26.6727","Probieren und Kombinieren 4, Igelaufgaben","Klett","4.","f",7.8,null,0]
["Übungs-/Arbeitsmaterial zum Schweizer Zahlenbuch","P26.6730","Verstehen und Trainieren 3, Grundaufgaben","Klett","3.","f",7.8,null,0]
["Übungs-/Arbeitsmaterial zum Schweizer Zahlenbuch","P26.6731","Verstehen und Trainieren 4, Grundaufgaben","Klett","4.","f",7.8,null,0]
["Übungs-/Arbeitsmaterial zum Schweizer Zahlenbuch","P26.6734","Vernetzen und Automatisieren 3","Klett","3.","f",6.3,null,0]
["Übungs-/Arbeitsmaterial zum Schweizer Zahlenbuch","P26.6735","Vernetzen und Automatisieren 4","Klett","4.","f",6.3,null,0]
[]
["Übungs-/Arbeitsmaterial zum Schweizer Zahlenbuch","P26.6736","Operieren 5/6","Klett","5./6.","f",9.5,null,0]
["Übungs-/Arbeitsmaterial zum Schweizer Zahlenbuch","P26.6737","Forschen 5/6","Klett","5./6.","f",9.5,null,0]
["Übungs-/Arbeitsmaterial zum Schweizer Zahlenbuch","P26.6738","Darstellen 5/6","Klett","5./6.","f",9.5,null,0]
["Übungs-/Arbeitsmaterial zum Schweizer Zahlenbuch"]
["Übungs-/Arbeitsmaterial zum Schweizer Zahlenbuch","P26.6743","Denkschule 3/4","Klett","3./4.","f",36.299999999999997,null,0]
["Übungs-/Arbeitsmaterial zum Schweizer Zahlenbuch","P26.6750","Arithmetik im Kopf 5, Kartei","Klett","5.","f",29.5,null,0]
["Übungs-/Arbeitsmaterial zum Schweizer Zahlenbuch","P26.6751","Arithmetik im Kopf 6, Kartei","Klett","6.","f",29.5,null,0]
["Übungs-/Arbeitsmaterial zum Schweizer Zahlenbuch","P26.6752","Sachrechnen im Kopf 5/6, Kartei","Klett","5./6.","f",38.9,null,0]
[]
["Übungs-/Arbeitsmaterial zum Schweizer Zahlenbuch","P26.6792","Zauberdreieck","Klett","1.-4.","f",51.3,null,0]
["Übungs-/Arbeitsmaterial zum Schweizer Zahlenbuch","P26.6800","Das Tausenderbuch (10er Paket)","Klett",null,"f",15,null,0]
["Übungs-/Arbeitsmaterial zum Schweizer Zahlenbuch","P26.6801","Das Tausenderbuch, Lehrerausgabe","Klett",null,"f",64.599999999999994,null,0]
["Übungs-/Arbeitsmaterial zum Schweizer Zahlenbuch","P26.6802","Wendekarten (10er Paket)","Klett",null,"f",18.3,null,0]
["Übungs-/Arbeitsmaterial zum Schweizer Zahlenbuch","P26.6803","Wendekarten, Lehrerausgabe magnetisch","Klett",null,"f",93,null,0]
["Übungs-/Arbeitsmaterial zum Schweizer Zahlenbuch","P26.6804","Wendeplättchen (1500 St.)","Klett",null,"f",12.9,null,0]
["Übungs-/Arbeitsmaterial zum Schweizer Zahlenbuch","P26.6805","Wendeplättchen, Lehrerausgabe magn.","Klett",null,"f",93,null,0]
["Übungs-/Arbeitsmaterial zum Schweizer Zahlenbuch","P26.6806","Das Millionbuch (10 Poster)","Klett",null,"f",55.5,null,0]
["Übungs-/Arbeitsmaterial zum Schweizer Zahlenbuch","P26.6807","Plättchen & Co. Digital, interakt. Tafelbilder","Klett","1.-4.","f",39.5,null,0]
[]
["Übungs-/Arbeitsmaterial zum Schweizer Zahlenbuch","P26.6811","Spiegeln mit dem Spiegelbuch","Klett","ab 3.","f",34.5,null,0]
["Übungs-/Arbeitsmaterial zum Schweizer Zahlenbuch","P26.6812","Spiegel (10 Handspiegel)","Klett",null,"f",24.6,null,0]
["Übungs-/Arbeitsmaterial zum Schweizer Zahlenbuch","P26.6813","Geometrie im Kopf (Basiskurs) Kartei","Klett","ab 3.","f",33,null,0]
["Übungs-/Arbeitsmaterial zum Schweizer Zahlenbuch","P26.6814","Schauen und Bauen, Teil 1","Klett","ab 4.","f",43.5,null,0]
["Übungs-/Arbeitsmaterial zum Schweizer Zahlenbuch","P26.6815","Schauen und Bauen, Teil 2","Klett","ab 4.","f",43.5,null,0]
[]
["Mathematik 3-6","P27.8024","Blitzrechnen 3/4, CR","Klett","3.-4.","f",44.3,null,0]
["Mathematik 3-6","P27.8025","Rechentraining 5, CR Einzelplatzlizenz","Klett","5.","f",39,null,0]
["Mathematik 3-6","P27.8026","Rechentraining 6, CR Einzelplatzlizenz","Klett","6.","f",39,null,0]
[]
["Mathematik 3-6","P27.8050","mini-LÜK Lösungsgerät","SBZ",null,"f",24.5,null,0]
["Mathematik 3-6","P27.8051","LÜK Lösungsgerät","SBZ",null,"f",25.9,null,0]
["Mathematik 3-6","P27.8052","Profax Kontrollgerät","Profax",null,"f",39.799999999999997,null,0]
["Mathematik 3-6","P27.8053","Abaco 20, Modell A (rot-weiss)","Schubi",null,"f",19.95,null,0]
["Mathematik 3-6","P27.8062","Abaco 20, mit Zahlen (rot-weiss)","Schubi",null,"f",19.95,null,0]
["Mathematik 3-6","P27.8054","Abaco 100, Modell A (ohne Zahlen)","Schubi",null,"f",59.95,null,0]
["Mathematik 3-6","P27.8057","Abaco 100, Modell A (mit Zahlen)","Schubi",null,"f",59.95,null,0]
["Mathematik 3-6","P27.8063","Abaco 100, Tricolor (rot-weiss)","Schubi",null,"f",64.95,null,0]
[]
["Mathematik 3-6","P24.1716","Spielwürfel-Sortiment (10 Stück)    ","Schubi",null,"f",17.899999999999999,null,0]
["Mathematik 3-6","P27.8055","Augenwürfel (10 Stück)","Schubi",null,"f",11.9,null,0]
["Mathematik 3-6","P27.8056","Schüler-Lernuhr","Schubi",null,"f",10.95,null,0]
["Mathematik 3-6","P27.8071","Grosse Lernuhr (27 cm)","Schubi",null,"f",44.95,null,0]
["Mathematik 3-6","P27.8072","Tafel-Uhr (29x36 cm)","Schubi",null,"f",21.95,null,0]
["Mathematik 3-6","P27.8073","Rechengeld CHF","Schubi",null,"f",8.9499999999999993,null,{"$f":"G152*H152","v":0}]
["Mathematik 3-6","P27.8074","Magnetisches Wandtafelgeld CHF","Schubi",null,"f",74.95,null,0]
["Mathematik 3-6","P27.8066","Time Timer, gross","K2",null,"f",81,null,0]
["Mathematik 3-6","P27.8067","Time Timer, mittel","K2",null,"f",54,null,0]
["Mathematik 3-6","P27.8068","Time Timer, klein","K2",null,"f",48,null,0]
["Mathematik 3-6","P27.8069","Time Timer, Plus","K2",null,"f",58,null,0]
["Mathematik 3-6","P27.8075","Sanduhren (5 Stück)","Ingold",null,"f",9.9499999999999993,null,0]
[]
["Mathematik 3-6","P27.8070","Die Fermi-Box, Kartei inkl. Kommentar","Klett","5.-7.","f",40.700000000000003,null,0]
[]
["Mathematik Integrative Förderung","P29.3311","Stark in Mathematik, Buch","SBZ","MS","f",42.5,null,0]
["Mathematik Integrative Förderung","P29.3312","Stark in Mathematik, AH M1","SBZ","MS","f",9.9,null,0]
["Mathematik Integrative Förderung","P29.3313","Stark in Mathematik, AH M2","SBZ","MS","f",9.9,null,0]
["Mathematik Integrative Förderung","P29.3314","Stark in Mathematik, Kommentar","SBZ","MS","f",33.9,null,0]
["Mathematik Integrative Förderung","P29.3315","Stark in Mathematik, Lösungen","SBZ","MS","f",16.5,null,0]
[]
["Mathematik Integrative Förderung","P29.3402","Heilpäd. Komm. Schweiz. Zahlenbuch 3","Klett",null,"f",45,null,0]
["Mathematik Integrative Förderung","P29.3403","Heilpäd. Komm. Schweiz. Zahlenbuch 4","Klett",null,"f",45,null,0]
["Mathematik Integrative Förderung","P29.3404","Heilpäd. Komm. Schweiz. Zahlenbuch 5/6","Klett",null,"f",56,null,0]
["Mathematik Integrative Förderung","P29.3500","Lernumgebungen für Rechenschwache bis Hochb.","Klett","1.-6.","f",54,null,0]

{"sheet":"Natur,Mensch,Gesellschaft","index":4,"n_rows":136,"n_cols":9,"rows_kept":136,"cut":false,"hidden":false,"merged":[[1,4,1,7],[2,4,2,7],[3,4,3,7]]}
[null,"Kundennummer",{"$f":"'Angaben zur Bestellung'!$B$11","v":0},null,null,null,"Datum:",{"$f":"'Angaben zur Bestellung'!B20","v":"2019-05-03"},"NMG"]
[null,"Vorname & Name:",{"$f":"'Angaben zur Bestellung'!B13","v":0},"PlZ , Ort",{"$f":"'Angaben zur Bestellung'!B16","v":0},null,null,null,{"$f":"SUM(I7:I966)","v":0}]
[null,"Schulhaus & Stufe:",{"$f":"'Angaben zur Bestellung'!B14","v":0},"Telefon",{"$f":"'Angaben zur Bestellung'!B17","v":0},null,null,null,"Gesamttotal"]
[null,"Strasse:",{"$f":"'Angaben zur Bestellung'!B15","v":0},"eMail:",{"$f":"'Angaben zur Bestellung'!B18","v":0},null,null,null,{"$f":"Bestellschein!I4","v":0}]
[]
["Kompetenzbereich","TNR","Artikeltitel","Verlag","Stufe","KTG","VKP","Menge","Betrag"]
["NMG Zeit","P30.5062","RaumZeit, Legeset","Schulverlag+","ab 3.","f",47.9,null,{"$f":"G7*H7","v":0}]
["NMG Zeit","P30.5063","RaumZeit, Klassenmaterial","Schulverlag+","ab 3.","f",98,null,{"$f":"G8*H8","v":0}]
["NMG Zeit","P30.5064","RaumZeit, Hinweise","Schulverlag+","ab 3.","f",29.5,null,0]
["NMG Zeit","P30.5065","Panorama, Raum und Zeit","Schulverlag+","ab 2.","f",17.2,null,0]
["NMG Zeit","P30.5066","Panorama, Klassenmaterial","Schulverlag+","ab 2.","f",98,null,0]
["NMG Zeit","P30.5067","Panorama, Hinweise","Schulverlag+","ab 2.","f",25.5,null,0]
["NMG Zeit","P30.5070","Pfahlandia, Würfelspiel Jungsteinzeit","LMVZ","ab 4.","f",52.6,null,0]
["NMG Zeit","P30.5080","Themenheft zur Schweizer Geschichte","LVLU","PS","f",12,null,0]
[]
["NMG Raum","P32.3000","Schulkarte Kanton Uri (neu)","LVUR","4.","o",4,null,0]
["NMG Raum","P33.1426","Schulkarte Schweiz 1:500'000 ","LMVZ","5.","o",7.1,null,0]
["NMG Raum","P33.1427","Schulkarte Schweiz, CR Einzellizenz priv.","LMVZ","5.","f",20.8,null,0]
[]
["NMG Raum","P39.5472","Lernmappe Schweiz","LVSG","4.-6.","f",30,null,0]
["NMG Raum","P39.5473","Primarschulatlas","Westermann",null,"f",25.9,null,0]
["NMG Raum","P39.5474","Primarschulatlas, Kommentar","Westermann",null,"f",31.5,null,0]
[]
["NMG Raum","P39.5480","It'sCool, Lehrmittel","OL-Materialst.","ab 4.","f*",70,null,0]
["NMG Raum","P39.5481","It'sCool, Spiele und Testfragen","OL-Materialst.","ab 4.","f*",30,null,0]
["NMG Raum","P39.5482","It'sCool, Set","OL-Materialst.","ab 4.","f*",80,null,0]
["NMG Raum","P30.5062","RaumZeit, Legeset","Schulverlag+","ab 3.","f",47.9,null,0]
["NMG Raum","P30.5063","RaumZeit, Klassenmaterial","Schulverlag+","ab 3.","f",98,null,0]
["NMG Raum","P30.5064","RaumZeit, Hinweise","Schulverlag+","ab 3.","f",29.5,null,0]
["NMG Raum","P30.5065","Panorama, Raum und Zeit","Schulverlag+","ab 2.","f",17.2,null,0]
["NMG Raum","P30.5066","Panorama, Klassenmaterial","Schulverlag+","ab 2.","f",98,null,0]
["NMG Raum","P30.5067","Panorama, Hinweise","Schulverlag+","ab 2.","f",25.5,null,0]
[]
["NMG Uri","P36.3000","Urner Sagen, Buch mit CD","Quadrat",null,"f",54,null,0]
["NMG Uri","P36.3001","Das Eisklumpenungeheuer, Buch","Gisler",null,"f",12,null,0]
["NMG Uri","P36.3002","Dr achtchepfig Stier, CD","LVUR",null,"f",12,null,0]
[]
["NMG Pflanzen, Tiere, Lebensräume","P39.7817","Feldbuch NaturSpur","Schulverlag+","1.-4.","f",19.3,null,0]
["NMG Pflanzen, Tiere, Lebensräume","P37.1600","Erlebnisbilder Lebensräume NaturSpur","Schulverlag+","1.-4.","f",48,null,0]
[]
["NMG Pflanzen, Tiere, Lebensräume","P37.2024","Zebra 3/4, Projektheft-Paket A (7 Hefte)","Klett","3.","f",41.7,null,0]
["NMG Pflanzen, Tiere, Lebensräume","P37.2025","Zebra 3/4, Projektheft-Paket B (7 Hefte)","Klett","4.","f",41.7,null,0]
["NMG Pflanzen, Tiere, Lebensräume","P37.2026","Zebra 3/4, Kommentar mit CR und CD","Klett","3.-4.","f",31.1,null,0]
["NMG Pflanzen, Tiere, Lebensräume","P37.2027","Zebra 3/4, Kopiervorlagen A mit CR","Klett","3.-4.","f",88.5,null,0]
["NMG Pflanzen, Tiere, Lebensräume","P37.2028","Zebra 3/4, Kopiervorlagen B mit CR","Klett","3.-4.","f",88.5,null,0]
[]
["NMG Pflanzen, Tiere, Lebensräume","P37.2500","Experimentierkartei 1-4, Schüler","Klett","1.-4.","f",18.600000000000001,null,0]
["NMG Pflanzen, Tiere, Lebensräume","P37.2501","Experimentierkartei 1-4, Lehrperson","Klett","1.-4.","f",20.7,null,0]
[]
["NMG Mensch","P38.3132","Sexualität und Liebe, Band 1","Schütz Esther","5.-9.","f",120,null,{"$f":"G50*H50","v":0}]
["NMG Mensch","P38.3133","Sexualität und Liebe, Texte 1","Schütz Esther","5.-9.","f",80,null,0]
["NMG Mensch","P38.3134","Sexualität und Liebe, Bilder 1","Schütz Esther","5.-9.","f",40,null,0]
["NMG Mensch","P38.3135","Sexualität und Liebe, Band 2","Schütz Esther","5.-9.","f",120,null,0]
["NMG Mensch","P38.3136","Sexualität und Liebe, Texte 2","Schütz Esther","5.-9.","f",120,null,0]
["NMG Mensch","P38.3137","Sexualität und Liebe, Bilder 2","Schütz Esther","5.-9.","f",40,null,0]
[]
["NMG Ethik und Religionen","P40.2000","Ethik und Religionen 3/4, Arbeitsheft","LVLU","3./4.","f",10.5,null,0]
["NMG Ethik und Religionen","P40.2001","Ethik und Religionen 3/4, Kommentar","LVLU","3./4.","f",24.5,null,0]
["NMG Ethik und Religionen","P40.3000","Ethik und Religionen 5/6, Arbeitsheft","LVLU","5./6.","f",10.5,null,0]
["NMG Ethik und Religionen","P40.3001","Ethik und Religionen 5/6, Kommentar","LVLU","5./6.","f",24.5,null,0]
["NMG Ethik und Religionen","P40.3100","Diamantensuche, Wertespiel","LVLU","3.-6.","f",38,null,0]
[]
["NMG Ethik und Religionen","P39.3107","Kunterbunt. Ich und die Gemeinschaft","Schulverlag+","ab 3.","f",15.1,null,0]
["NMG Ethik und Religionen","P39.3108","Kunterbunt, Klassenmaterial","Schulverlag+","ab 3.","f",89.5,null,0]
["NMG Ethik und Religionen","P39.3109","Kunterbunt, Hinweise","Schulverlag+","ab 3.","f",23.4,null,0]
[]
["NMG Ethik und Religionen","P39.3124","Kaleidoskop, Ich und die Gemeinschaft","Schulverlag+","ab 5.","f",17.2,null,0]
["NMG Ethik und Religionen","P39.3125","Kaleidoskop, Klassenmaterial","Schulverlag+","ab 5.","f",99.9,null,0]
["NMG Ethik und Religionen","P39.3126","Kaleidoskop, Hinweise","Schulverlag+","ab 5.","f",29.7,null,0]
[]
["NMG Ethik und Religionen","P40.3201","WeltBilden, Arbeitsheft Mittelstufe","Schulverlag+","MS","f",9.5,null,0]
["NMG Ethik und Religionen","P40.3202","WeltBilden, Materialien Primarstufe","Schulverlag+","PS","f",29.6,null,0]
["NMG Ethik und Religionen","P40.3203","WeltBilden, Grundlagen CR","Schulverlag+","PS/OS","f",59.2,null,0]
[]
["NMG Ethik und Religionen","P40.3250","HimmelsZeichen, Bildermappe","Schulverlag+","KG-3.","f",134,null,0]
["NMG Ethik und Religionen","P40.3251","HimmelsZeichen, Klassenmaterial","Schulverlag+","KG-3.","f",120,null,0]
["NMG Ethik und Religionen","P40.3252","HimmelsZeichen, Hinweise","Schulverlag+","KG-3.","f",34,null,0]
[]
["NMG Ethik und Religionen","P40.3300","FrageZeichen, Geschichtenbuch","Schulverlag+","4.-6.","f",16.5,null,0]
["NMG Ethik und Religionen","P40.3301","FrageZeichen, Klassenmaterial","Schulverlag+","4.-6.","f",99.9,null,0]
["NMG Ethik und Religionen","P40.3302","FrageZeichen, Hinweise","Schulverlag+","4.-6.","f",27.6,null,0]
[]
["NMG Ethik und Religionen","P40.5000","Blickpunkt 1, Schülerbuch","LMVZ","1.-3.","f",25,null,0]
["NMG Ethik und Religionen","P40.5001","Blickpunkt 1, Kommentar","LMVZ","1.-3.","f",46.8,null,0]
["NMG Ethik und Religionen","P40.5002","Blickpunkt 1, Klassenmaterial","LMVZ","1.-3.","f",124.8,null,0]
["NMG Ethik und Religionen","P40.5003","Blickpunkt 1, Poster","LMVZ","1.-3.","f",19.8,null,0]
["NMG Ethik und Religionen","P40.5004","Blickpunkt 1, Folien","LMVZ","1.-3.","f",27.1,null,0]
["NMG Ethik und Religionen","P40.5100","Blickpunkt 2, Schülerbuch","LMVZ","4.-6.","f",25,null,0]
["NMG Ethik und Religionen","P40.5101","Blickpunkt 2, Kommentar","LMVZ","4.-6.","f",46.8,null,0]
["NMG Ethik und Religionen","P40.5102","Blickpunkt 2, Klassenmaterial","LMVZ","4.-6.","f",124.8,null,0]
[]
["NMG Ethik und Religionen","P40.6000","Über das Leben nachdenken, Print + CD","Lernbiene","3./4.","f",35.9,null,0]
["NMG Ethik und Religionen","P40.6001","Vom Streiten und Vertragen, Print + CD","Lernbiene","2.-4.","f",35.9,null,0]
["NMG Ethik und Religionen","P40.6003","Ethik an Stationen 3/4","Auer","3./4.","f",31.5,null,0]
["NMG Ethik und Religionen","P40.6004","Ethik an Stationen 5/6","Auer","5./6.","f",30.5,null,0]
["NMG Ethik und Religionen","P40.6006","Ethik 3./4. Klasse","Persen","3./4.","f",29.5,null,0]
["NMG Ethik und Religionen","P40.6008","Lernwerkstatt: Weltreligionen","Persen","4.-6.","f",33.9,null,0]
["NMG Ethik und Religionen","P40.6009","Das Judentum, Print + CD","Lernbiene","4.-6.","f",35.5,null,0]
[]
["NMG Allgemein","P39.3110","Süssholz. Produzieren - Konsumieren","Schulverlag+","ab 3.","f",17.2,null,0]
["NMG Allgemein","P39.3111","Süssholz, Klassenmaterial","Schulverlag+","ab 3.","f",97.8,null,0]
["NMG Allgemein","P39.3112","Süssholz, Hinweise","Schulverlag+","ab 3.","f",21.4,null,0]
[]
["NMG Allgemein","H03.1027","Genusswoche, Lager(Koch)tage","LVSO","3.-6.","f",42,null,{"$f":"G104*H104","v":0}]
["NMG Allgemein","H03.1028","Lebensmittelkarten-Set","LVSO","3.-6.","f",28,null,0]
[]
["NMG Allgemein","P39.3100","Lernwelten, Ausbildung fachdidaktische Grundlagen","Schulverlag+","KG-6.","f",24,null,{"$f":"G107*H107","v":0}]
[]
["NMG Allgemein","P39.3113","NaTech 3/4, Themenbuch","Schulverlag+",null,"f",27.9,null,0]
["NMG Allgemein","P39.3114","NaTech 3/4, Forschungsheft ","Schulverlag+",null,"f",17.899999999999999,null,0]
["NMG Allgemein","P39.3115","NaTech 3/4, Kommentar","Schulverlag+",null,"f",179,null,0]
[]
["NMG Allgemein","P39.3121","NaTech 5/6, Themenbuch","Schulverlag+",null,"f",29.9,null,0]
["NMG Allgemein","P39.3122","NaTech 5/6, Forschungsheft","Schulverlag+",null,"f",19.899999999999999,null,0]
["NMG Allgemein","P39.3123","NaTech 5/6, Kommentar","Schulverlag+",null,"f",179,null,0]
[]
["NMG Allgemein","P39.3300","Kolumbus, Schülerheft (berufliche Orientierung)","Schulverlag+","4.-6.","f",8,null,0]
["NMG Allgemein","P39.3301","Kolumbus, Lehrerheft (berufliche Orientierung)","Schulverlag+","4.-6.","f",15,null,0]
["NMG Allgemein","P39.3302","Kolumbus, Elternheft (berufliche Orientierung)","Schulverlag+","4.-6.","f",15,null,0]
[]
["NMG Allgemein","P39.3119","RespAct - spielend Gewalt thematisieren","LVUR","ab 5.","f",48,null,0]
["NMG Allgemein","P39.3129","Wir helfen zu viel","Klett","1.-9.","f",44.9,null,0]
["NMG Allgemein","P39.3130","Ich lerne lernen","LMVZ","3.-5.","f",15.8,null,0]
["NMG Allgemein","P39.3132","Lernen kennen lernen","LMVZ","6.-9.","f",15.8,null,0]
["NMG Allgemein","P39.3133","Kommentar zu Lernen lernen","LMVZ","3.-9.","f",17.399999999999999,null,0]
["NMG Allgemein","P39.3140","So geht's! Lernmethoden","Schubi","3./4.","f",14.95,null,0]
["NMG Allgemein","P39.3141","Denkbilder - Mit K. das Lernen reflektieren","Schulverlag+","1.-6.","f",38,null,0]
[]
["NMG Allgemein","H03.8200","Querblicke - Grundlagenband BNE","Schulverlag+","1.-9.","f",32,null,{"$f":"G129*H129","v":0}]
["NMG Allgemein","P39.4001","Querblicke - Umsetzungsheft Huhn und Ei","Schulverlag+","1.-4.","f",43,null,0]
["NMG Allgemein","P39.4002","Querblicke - Umsetzungsheft Verpackung","Schulverlag+","1.-6.","f",43,null,0]
["NMG Allgemein","P39.4003","Querblicke - Umsetzungsheft Mobilität","Schulverlag+","3.-6.","f",43,null,0]
["NMG Allgemein","H03.8201","Querblicke - Umsetzungsheft Rind und Fleisch","Schulverlag+","3.-9.","f",43,null,0]
["NMG Allgemein","P39.4004","Querblicke - Umsetzungsheft Virtuelles Wasser","Schulverlag+","3.-9.","f",43,null,0]
["NMG Allgemein","H03.8202","Querblicke - Umsetzungsheft Projekte in der Gemeinde","Schulverlag+","5.-9.","f",43,null,0]
["NMG Allgemein","H03.8203","Querblicke - Instumentenbox","Schulverlag+","1.-9.","f",55,null,0]

{"sheet":"Gestalten","index":5,"n_rows":35,"n_cols":9,"rows_kept":35,"cut":false,"hidden":false,"merged":[[1,4,1,7],[2,4,2,7],[3,4,3,7]]}
[null,"Kundennummer",{"$f":"'Angaben zur Bestellung'!$B$11","v":0},null,null,null,"Datum:",{"$f":"'Angaben zur Bestellung'!B20","v":"2019-05-03"},"Gestalten"]
[null,"Vorname & Name:",{"$f":"'Angaben zur Bestellung'!B13","v":0},"PlZ , Ort",{"$f":"'Angaben zur Bestellung'!B16","v":0},null,null,null,{"$f":"SUM(I7:I986)","v":0}]
[null,"Schulhaus & Stufe:",{"$f":"'Angaben zur Bestellung'!B14","v":0},"Telefon",{"$f":"'Angaben zur Bestellung'!B17","v":0},null,null,null,"Gesamttotal"]
[null,"Strasse:",{"$f":"'Angaben zur Bestellung'!B15","v":0},"eMail:",{"$f":"'Angaben zur Bestellung'!B18","v":0},null,null,null,{"$f":"Bestellschein!I4","v":0}]
[]
["Kompetenzbereich","TNR","Artikeltitel","Verlag","Stufe","KTG","VKP","Menge","Betrag"]
["Textiles und Technisches Gestalten","H01.3126","Fadenflip 1 ","LVLU",null,"o",28.5,null,{"$f":"G7*H7","v":0}]
["Textiles und Technisches Gestalten","H01.3127","Fadenflip 2","LVLU",null,"o",28.5,null,{"$f":"G8*H8","v":0}]
["Textiles und Technisches Gestalten","H01.3128","Fadenflip 1+2, Kommentar mit CR","LVLU",null,"o",108,null,0]
["Textiles und Technisches Gestalten","H01.2401","Verflixt und zugenäht, Ordner (neu)","LVSG",null,"f",17.5,null,0]
["Textiles und Technisches Gestalten","H01.2410","Verflixt und zugenäht, Kommentar (neu)","LVSG",null,"f",62,null,0]
[]
["Textiles und Technisches Gestalten","O51.1000","Technik und Design, Grundlagen","hep",null,"f",59,null,0]
["Textiles und Technisches Gestalten","O51.1001","Technik und Design, Lernheft","hep",null,"f",21,null,0]
["Textiles und Technisches Gestalten","O51.1002","Technik und Design, Handbuch Mode/Wohnen","hep",null,"f",44,null,0]
["Textiles und Technisches Gestalten","O51.1003","Technik und Design, Handbuch Spiel/Mechanik","hep",null,"f",44,null,{"$f":"G16*H16","v":0}]
[]
["Textiles und Technisches Gestalten","P56.9211","Werkweiser 2, Handbuch mit CR","Schulverlag+","3.-6.","o",77.5,null,0]
["Textiles und Technisches Gestalten","P56.9212","Werkweiser 2, Module 1-10","Schulverlag+","3.-6.","f",37,null,0]
["Textiles und Technisches Gestalten","P56.9215","Wertlos - Wertvoll","Schulverlag+","1.-9.","f",51,null,0]
["Textiles und Technisches Gestalten","P56.9216","Schwachstrom - Magnetismus","Schulverlag+","ab 3.","f",46.8,null,0]
["Textiles und Technisches Gestalten","P56.9220","Türme und Windräder, Handbuch","LVSG","ab 5.","f",39,null,0]
["Textiles und Technisches Gestalten","P56.9221","formSachen - Tonarbeit im Unterricht","Schulverlag+","KG-9.","f",54,null,0]
["Textiles und Technisches Gestalten","P56.9223","Himmelhoch & Türkisblau","Schulverlag+","KG-3.","f",52,null,0]
["Textiles und Technisches Gestalten","P56.9224","Schere Stift Papier","Schulverlag+","1.-4.","f",19,null,0]
[]
["Bildnerisches Gestalten","P57.2860","10x10 Kunstbegegnungen","Erle",null,"f",48.8,null,0]
["Bildnerisches Gestalten","P57.9212","bildÖffner, Grundlagen","Schulverlag+","KG-9.","f*",92.6,null,0]
["Bildnerisches Gestalten","P57.9214","bildÖffner 2","Schulverlag+","3.-6.","f",78,null,0]
["Bildnerisches Gestalten","P57.9215","Zeichnen mit der Schere","Schulverlag+","KG-4.","f",40.1,null,0]
["Bildnerisches Gestalten","P57.9216","Fotografieren macht Schule","Schulverlag+","4.-6.","f",51,null,0]
["Bildnerisches Gestalten","P57.9217","Wege zum Bild","Erle","ab 5.","f",48.8,null,0]
["Bildnerisches Gestalten","H01.2440","Falten falten","LVSG","ab 3.","f",59,null,0]
["Bildnerisches Gestalten","P57.3000","bildwärts, Handbuch 2. Zyklus","LMVZ","3.-6.","f",69.8,null,{"$f":"G34*H34","v":0}]
["Bildnerisches Gestalten","P57.3001","bildwärts, Zusatzmaterialien (digital) für LP","LMVZ","3.-6.","f",8.8000000000000007,null,{"$f":"G35*H35","v":0}]

{"sheet":"Musik","index":6,"n_rows":42,"n_cols":9,"rows_kept":42,"cut":false,"hidden":false,"merged":[[1,4,1,7],[2,4,2,7],[3,4,3,7]]}
[null,"Kundennummer",{"$f":"'Angaben zur Bestellung'!$B$11","v":0},null,null,null,"Datum:",{"$f":"'Angaben zur Bestellung'!B20","v":"2019-05-03"},"Musik"]
[null,"Vorname & Name:",{"$f":"'Angaben zur Bestellung'!B13","v":0},"PlZ , Ort",{"$f":"'Angaben zur Bestellung'!B16","v":0},null,null,null,{"$f":"SUM(I7:I995)","v":0}]
[null,"Schulhaus & Stufe:",{"$f":"'Angaben zur Bestellung'!B14","v":0},"Telefon",{"$f":"'Angaben zur Bestellung'!B17","v":0},null,null,null,"Gesamttotal"]
[null,"Strasse:",{"$f":"'Angaben zur Bestellung'!B15","v":0},"eMail:",{"$f":"'Angaben zur Bestellung'!B18","v":0},null,null,null,{"$f":"Bestellschein!I4","v":0}]
[]
["Kompetenzbereich","TNR","Artikeltitel","Verlag","Stufe","KTG","VKP","Menge","Betrag"]
["Musik","P50.1700","Kreschendo 3/4, Arbeitsheft","Comenius",null,"f",12,null,{"$f":"G7*H7","v":0}]
["Musik","P50.1701","Kreschendo 3/4, Begleitband","Comenius",null,"f",48,null,{"$f":"G8*H8","v":0}]
["Musik","P50.1702","Kreschendo 3/4, Audio-CD","Comenius",null,"f",39,null,0]
["Musik","P50.1710","Kreschendo 5/6, Arbeitsheft","Comenius",null,"f",12,null,0]
["Musik","P50.1711","Kreschendo 5/6, Begleitband","Comenius",null,"f",48,null,0]
["Musik","P50.1712","Kreschendo 5/6, Audio-CD","Comenius",null,"f",39,null,0]
[]
["Musik","P50.1724","MusAik 2, Arbeitsheft","LVSG","KG/PS","f",22,null,0]
["Musik","P50.1725","MusAik 2, Kommentar","LVSG","KG/PS","f",98,null,0]
["Musik","P50.1726","MusAik 2, Audio CD's","LVSG","KG/PS","f",49,null,0]
["Musik","P50.1727","MusAik 2, Lernkarten","LVSG","KG/PS","f",14.8,null,0]
["Musik","P50.1728","MusAik 1+2, Rhythmuskarten ","LVSG","KG/PS","f",8.5,null,0]
["Musik","P50.1723","MusAik 1+2, DVD's","LVSG","KG/PS","f",74,null,0]
[]
["Musik","P50.1491","Sing mit, Schülerbuch (neu)","LVSG","2.-3.","f",25.5,null,0]
["Musik","P50.1492","Sing mit, Kommentar (neu)","LVSG","2.-3.","f*",65,null,0]
["Musik","P50.1493","Sing mit, 6 Playback CD's (neu)","LVSG","2.-3.","f*",78,null,0]
["Musik","P50.1511","Sing Ais (neu), Schülerbuch","LVSG","4.-6.","f",19.8,null,0]
["Musik","P50.1512","Sing Ais (neu), Kommentar","LVSG","4.-6.","f*",58,null,0]
["Musik","P50.1513","Sing Ais (neu), Playback CD's","LVSG","4.-6.","f*",72,null,0]
["Musik","P50.1738","Salü, Liedsammlung","LVLU","1.-3.","f",19.5,null,0]
["Musik","P50.1497","Salü, Kommentar","LVLU","1.-3.","f",42,null,0]
["Musik","P50.1498","Viva, Liedsammlung ","LVLU","4.-6.","f",19.5,null,0]
["Musik","P50.1499","Viva, Kommentar","LVLU","4.-6.","f",34.5,null,0]
[]
["Musik","P50.1515","Sim Sala Sing, Liederbuch","Helbling","1.-6.","f",25.5,null,0]
["Musik","P50.1516","Sim Sala Sing, 4 CD's Originalaufnahmen","Helbling","1.-6.","f",96.6,null,0]
["Musik","P50.1517","Sim Sala Sing, 5 CD's Playbacks","Helbling","1.-6.","f",122.4,null,0]
["Musik","P50.1518","Sim Sala Sing, CR","Helbling","1.-6.","f",58.5,null,0]
["Musik","P50.1530","im.puls 1, Schülerband","Helbling","5./6.","f",35.9,null,0]
["Musik","P50.1531","im.puls 1, Lehrerband","Helbling","5./6.","f",46.8,null,0]
["Musik","P50.1532","im.puls 1, Audio-CD-Box","Helbling","5./6.","f",97.5,null,0]
["Musik","P50.1533","im.puls 1, Multimedia-Anwendungen","Helbling","5./6.","f",104,null,0]
["Musik","P50.1534","im.puls 1, Video-DVD","Helbling","5./6.","f",65,null,0]
["Musik","P50.1915","Pauseziit (Lieder, Warm-ups)","LMVZ","KG-6.","f",49.8,null,0]
["Musik","P50.2000","Schwizer Volksliedli, Liederbuch mit CD","Mülirad",null,"f",36,null,0]

{"sheet":"Modul","index":7,"n_rows":27,"n_cols":9,"rows_kept":27,"cut":false,"hidden":false,"merged":[[1,4,1,7],[2,4,2,7],[3,4,3,7]]}
[null,"Kundennummer",{"$f":"'Angaben zur Bestellung'!$B$11","v":0},null,null,null,"Datum:",{"$f":"'Angaben zur Bestellung'!B20","v":"2019-05-03"},"Modul"]
[null,"Vorname & Name:",{"$f":"'Angaben zur Bestellung'!B13","v":0},"PlZ , Ort",{"$f":"'Angaben zur Bestellung'!B16","v":0},null,null,null,{"$f":"SUM(I7:I1010)","v":0}]
[null,"Schulhaus & Stufe:",{"$f":"'Angaben zur Bestellung'!B14","v":0},"Telefon",{"$f":"'Angaben zur Bestellung'!B17","v":0},null,null,null,"Gesamttotal"]
[null,"Strasse:",{"$f":"'Angaben zur Bestellung'!B15","v":0},"eMail:",{"$f":"'Angaben zur Bestellung'!B18","v":0},null,null,null,{"$f":"Bestellschein!I4","v":0}]
[]
["Kompetenzbereich","TNR","Artikeltitel","Verlag","Stufe","KTG","VKP","Menge","Betrag"]
["Medien und Informatik","P90.2580","inform@21, Arbeitsmaterial 5/6","LVSG",null,"f",19.600000000000001,null,{"$f":"G7*H7","v":0}]
["Medien und Informatik","P90.2581","inform@21, Kommentar 5/6","LVSG",null,"f",38,null,0]
[]
["Medien und Informatik","P90.2566","Medienkompass 1, Schülerbuch","LMVZ","4.-6.","f",34.4,null,0]
["Medien und Informatik","P90.2567","Medienkompass 1, Kommentar","LMVZ","4.-6.","f",30.1,null,0]
["Medien und Informatik","P90.2590","connected 1, Arbeitsbuch","LMVZ","5.","f",14.8,null,{"$f":"G12*H12","v":0}]
["Medien und Informatik","P90.2591","connected 1, Handbuch (digital)","LMVZ","5.","f",12.8,null,0]
["Medien und Informatik","P90.2592","connected 2, Arbeitsbuch","LMVZ","6.","f",14.8,null,{"$f":"G14*H14","v":0}]
["Medien und Informatik","P90.2593","connected 2, Handbuch (digital)","LMVZ","6.","f",12.8,null,0]
[]
["Medien und Informatik","P90.2572","Mein Computerheft 3/4, Arbeitsheft","Herdt",null,"f",15.6,null,0]
["Medien und Informatik","P90.2573","Mein Computerheft 3/4, Lehrerband","Herdt",null,"f",16.100000000000001,null,0]
["Medien und Informatik","P90.2574","ClickITsave für Kids 5/6, Arbeitsheft","Herdt",null,"f",15.6,null,0]
["Medien und Informatik","P90.2575","ClickITsave für Kids 5/6, Lehrerband","Herdt",null,"f",16.100000000000001,null,0]
[]
["Medien und Informatik","P90.2582","einfach Informatik Programmieren, Schulbuch","Klett","5./6.","f",24,null,{"$f":"G22*H22","v":0}]
["Medien und Informatik","P90.2583","einfach Informatik Programmieren, Begleitband","Klett","5./6.","f",49,null,0]
["Medien und Informatik","P90.2584","einfach Informatik Programmieren, DAL","Klett","5./6.","f",39,null,0]
["Medien und Informatik","P90.2585","einfach Informatik Lösungen finden, Schulbuch","Klett","5./6.","f",18,null,0]
["Medien und Informatik","P90.2586","einfach Informatik Lösungen finden, Begleitband","Klett","5./6.","f",49,null,0]
["Medien und Informatik","P90.2587","einfach Informatik Lösungen finden, DAL","Klett","5./6.","f",39,null,0]

{"sheet":"Bewegung und Sport","index":8,"n_rows":70,"n_cols":9,"rows_kept":70,"cut":false,"hidden":false,"merged":[[1,4,1,7],[2,4,2,7],[3,4,3,7]]}
[null,"Kundennummer",{"$f":"'Angaben zur Bestellung'!$B$11","v":0},null,null,null,"Datum:",{"$f":"'Angaben zur Bestellung'!B20","v":"2019-05-03"},"B & S"]
[null,"Vorname & Name:",{"$f":"'Angaben zur Bestellung'!B13","v":0},"PlZ , Ort",{"$f":"'Angaben zur Bestellung'!B16","v":0},null,null,null,{"$f":"SUM(I7:I999)","v":0}]
[null,"Schulhaus & Stufe:",{"$f":"'Angaben zur Bestellung'!B14","v":0},"Telefon",{"$f":"'Angaben zur Bestellung'!B17","v":0},null,null,null,"Gesamttotal"]
[null,"Strasse:",{"$f":"'Angaben zur Bestellung'!B15","v":0},"eMail:",{"$f":"'Angaben zur Bestellung'!B18","v":0},null,null,null,{"$f":"Bestellschein!I4","v":0}]
[]
["Kompetenzbereich","TNR","Artikeltitel","Verlag","Stufe","KTG","VKP","Menge","Betrag"]
["Bewegung und Sport","P60.2882","Sportheft 1.-3. Schuljahr","LMVZ",null,"f",8.5,null,{"$f":"G7*H7","v":0}]
["Bewegung und Sport","P60.2883","Sportheft 4.-6. Schuljahr","LMVZ",null,"f",7.5,null,0]
["Bewegung und Sport","P60.2884","Mein Sportjournal","bm-sportverlag",null,"f",16.8,null,{"$f":"G9*H9","v":0}]
["Bewegung und Sport","P60.2878","CD Bewegen Darstellen Tanzen","LMVZ",null,"f",15,null,0]
[]
["Bewegung und Sport","P60.1650","Schwimmwelt","Schulverlag+",null,"f",60.4,null,0]
["Bewegung und Sport","P60.1651","Schwimmwelt, DVD","Schwimmwelt",null,"f",59,null,0]
["Bewegung und Sport","P60.1652","100 Lektionen für den Schwimmunterricht","Schwimmheft","KG/PS","f",48.5,null,0]
["Bewegung und Sport","P60.1653","Testheft zum Schwimmunterricht","Schwimmheft","KG/PS","f",3.9,null,0]
["Bewegung und Sport","P60.1654","Schwimmtraining","VadR","3.-9.","f",27.5,null,0]
["Bewegung und Sport","P60.1655","60 Schwimmspiele mit Hilfsmitteln (Kartei)","VadR","1.-9.","f",31.2,null,0]
["Bewegung und Sport","P60.1656","Übungs-Kartei für den Schwimmunterricht","VadR","1.-6.","f",32.5,null,0]
[]
["Bewegung und Sport","P60.1610","Wassersicherheit macht Schule, Arbeitsheft Modul 3","LVLU","3.","f",3,null,{"$f":"G20*H20","v":0}]
["Bewegung und Sport","P60.1611","Wassersicherheit macht Schule, Begleitheft Modul 3","LVLU","3.","f",6,null,0]
["Bewegung und Sport","P60.1612","Wassersicherheit macht Schule, Arbeitsheft Modul 4","LVLU","4.","f",3,null,0]
["Bewegung und Sport","P60.1613","Wassersicherheit macht Schule, Begleitheft Modul 4","LVLU","4.","f",6,null,0]
["Bewegung und Sport","P60.1614","Wassersicherheit macht Schule, Arbeitsheft Modul 5","LVLU","5.","f",3,null,0]
["Bewegung und Sport","P60.1615","Wassersicherheit macht Schule, Begleitheft Modul 5","LVLU","5.","f",6,null,0]
["Bewegung und Sport","P60.1616","Wassersicherheit macht Schule, Arbeitsheft Modul 6","LVLU","6.","f",3,null,0]
["Bewegung und Sport","P60.1617","Wassersicherheit macht Schule, Begleitheft Modul 6","LVLU","6.","f",6,null,0]
[]
["Bewegung und Sport","P60.1660","Geräteturnfächer Basics","Ingold",null,"f",34,null,0]
["Bewegung und Sport","P60.1661","Geräteturnfächer Elements","Ingold",null,"f",34,null,0]
["Bewegung und Sport","P60.1663","Lernkontrolle Geräteturnen, Begleitbroschüre","Ingold",null,"f",47.5,null,0]
["Bewegung und Sport","P60.1664","Lernkontrolle Geräteturnen, Elementlisten","Ingold",null,"f",25.9,null,0]
["Bewegung und Sport","P60.1662","Sternstunden im Erlebnisturnen","Oekotopia",null,"f",52.9,null,0]
["Bewegung und Sport","P60.2900","Ballkünstler, Handbuch","LMVZ","1.-4.","f",25,null,0]
["Bewegung und Sport","P60.2901","Bewegungskünstlerin und Bewegungskünstler","bm-sportverlag","1.-4.","f",25,null,0]
[]
["Bewegung und Sport","P60.2920","Rhythmisch springen","LMVZ","3.","f",12.5,null,{"$f":"G37*H37","v":0}]
["Bewegung und Sport","P60.2921","Brennball spielen","LMVZ","3.","f",12.5,null,0]
["Bewegung und Sport","P60.2922","Balancieren","LMVZ","4.","f",12.5,null,0]
["Bewegung und Sport","P60.2923","Spielend laufen","LMVZ","4.","f",12.5,null,0]
["Bewegung und Sport","P60.2924","Hindernisse überlaufen","LMVZ","5.","f",12.5,null,0]
["Bewegung und Sport","P60.2925","Bewegte Akrobatik","LMVZ","6.","f",12.5,null,0]
[]
["Bewegung und Sport","P60.4000","School goes vertical - Bouldern","LVUR","3.-9.","f",35,null,0]
["Bewegung und Sport","P60.5000","Kompetenzbox für den Sportunterricht, Karteibox","LMVZ","KG-9.","f",55,null,0]
["Bewegung und Sport","P60.5010","Sportkarten 8-10 Jahre","LMVZ","3./4.","f",36.799999999999997,null,0]
["Bewegung und Sport","P60.5011","Sportkarten 10-12 Jahre","LMVZ","5./6.","f",36.799999999999997,null,0]
[]
["Bewegung und Sport","P60.2904","Aufwärmen","LMVZ","1.-9.","f",25,null,0]
["Bewegung und Sport","P60.2905","Top-Spiele für den Sportunterricht 2","LMVZ","1.-4.","f",25,null,0]
["Bewegung und Sport","P60.2906","Top-Spiele für den Sportunterricht 3","LMVZ","5.-9.","f",25,null,0]
["Bewegung und Sport","P60.2908","Jonglieren","LMVZ","1.-9.","f",18,null,0]
["Bewegung und Sport","P60.2909","Parkour und Freerunning","LMVZ","4.-9.","f",25,null,0]
["Bewegung und Sport","P60.2910","Sportspiele spielen und verstehen","bm-sportverlag","5.-9.","f",28,null,0]
["Bewegung und Sport","P60.2907","Sportlektionen abrunden","LMVZ","ab 3.","f",25,null,0]
[]
["Bewegung und Sport","P60.3000","Burner Games","SBZ","1.-9.","f",23.9,null,0]
["Bewegung und Sport","P60.3001","Burner Games Reloaded","SBZ","1.-9.","f",23.9,null,0]
["Bewegung und Sport","P60.3002","Burner Games Revolution","SBZ","1.-9.","f",23.9,null,0]
["Bewegung und Sport","P60.3003","Burner Games Fantasy","SBZ","1.-9.","f",23.9,null,0]
[]
["Bewegung und Sport","P60.3010","Spielfächer, Spielen lernen","Ingold","KG/US","f",34,null,0]
["Bewegung und Sport","P60.3011","Spielfächer, Zusammen spielen","Ingold","3.-6.","f",34,null,0]
["Bewegung und Sport","P60.3012","Spielfächer, Im Team spielen","Ingold","3.-9.","f",34,null,0]
["Bewegung und Sport","P60.3013","Spielfächer, Fussball in der Schule","Ingold","3.-9.","f",34,null,0]
[]
["Bewegung und Sport","P60.3020","Kunststücke am Boden","Ingold","PS/OS","f",125,null,0]
["Bewegung und Sport","P60.3021","Kunststücke am Reck","Ingold","PS/OS","f",125,null,0]
["Bewegung und Sport","P60.3022","Kunststücke im Flug","Ingold","PS/OS","f",125,null,0]
["Bewegung und Sport","P60.3023","Kunststücke im Schwung","Ingold","PS/OS","f",125,null,0]

{"sheet":"Verschiedenes","index":9,"n_rows":86,"n_cols":9,"rows_kept":86,"cut":false,"hidden":false,"merged":[[85,0,85,8],[76,3,76,5],[77,3,77,5],[78,3,78,5],[78,1,78,2],[77,1,77,2],[79,1,79,2],[80,1,80,2],[82,1,82,2],[82,3,82,5],[83,3,83,5],[83,1,83,2],[81,1,81,2],[73,3,73,5],[72,3,72,5],[79,3,79,5],[80,3,80,5],[81,3,81,5],[75,3,75,5],[67,3,67,5],[70,3,70,5],[71,3,71,5],[54,3,54,5],[55,3,55,5],[56,3,56,5],[57,3,57,5],[58,3,58,5],[59,3,59,5],[62,3,62,5],[63,3,63,5],[64,3,64,5],[65,3,65,5],[66,3,66,5],[63,1,63,2],[58,1,58,2],[59,1,59,2],[74,3,74,5],[54,1,54,2],[55,1,55,2],[56,1,56,2],[57,1,57,2],[71,1,71,2],[72,1,72,2],[61,3,61,5],[60,1,60,2],[67,1,67,2],[60,3,60,5],[68,3,68,5],[69,3,69,5],[1,4,1,7],[2,4,2,7],[3,4,3,7],[61,1,61,2],[62,1,62,2],[68,1,68,2],[69,1,69,2],[70,1,70,2],[76,1,76,2],[64,1,64,2],[65,1,65,2],[73,1,73,2],[74,1,74,2],[75,1,75,2],[66,1,66,2]]}
[null,"Kundennummer",{"$f":"'Angaben zur Bestellung'!$B$11","v":0},null,null,null,"Datum:",{"$f":"'Angaben zur Bestellung'!B20","v":"2019-05-03"},"Verschied."]
[null,"Vorname & Name:",{"$f":"'Angaben zur Bestellung'!B13","v":0},"PlZ , Ort",{"$f":"'Angaben zur Bestellung'!B16","v":0},null,null,null,{"$f":"SUM(I7:I1002)","v":0}]
[null,"Schulhaus & Stufe:",{"$f":"'Angaben zur Bestellung'!B14","v":0},"Telefon",{"$f":"'Angaben zur Bestellung'!B17","v":0},null,null,null,"Gesamttotal"]
[null,"Strasse:",{"$f":"'Angaben zur Bestellung'!B15","v":0},"eMail:",{"$f":"'Angaben zur Bestellung'!B18","v":0},null,null,null,{"$f":"Bestellschein!I4","v":0}]
[]
["Kompetenzbereich","TNR","Artikeltitel","Verlag","Stufe","KTG","VKP","Menge","Betrag"]
["Verschiedenes","P90.1519","Unterrichtsheft, Ausg. Ad5s (Spiralbindung)","VfU",null,"f",27.5,null,{"$f":"G7*H7","v":0}]
["Verschiedenes","P90.1521","Unterrichtsheft, Ausg. Ad (5-Tage-Woche)","VfU",null,"f",23,null,{"$f":"G8*H8","v":0}]
["Verschiedenes","H04.1029","Unterrichtsheft, Ausg. B (5-Tage-Woche)","VfU","ttG WAH","f",23,null,{"$f":"G9*H9","v":0}]
["Verschiedenes","P90.2537","Unterrichts-Journal 19/20","Comenius",null,"f",31.5,null,0]
["Verschiedenes","P90.1522","Tagebuch für Lehrpersonen 19/20, SpiralFlex","Ingold",null,"f",32.5,null,0]
["Verschiedenes","P90.1523","Tagebuch für Lehrpersonen 19/20, HardCover","Ingold",null,"f",32.5,null,0]
["Verschiedenes","P90.1524","Tagebuch für Lehrpersonen 19/20, SF light","Ingold",null,"f",29.5,null,0]
["Verschiedenes","P90.1526","Tagebuch für Lehrpersonen 19/20, HC light","Ingold",null,"f",29.5,null,0]
["Verschiedenes","P90.1527","schul-planer.ch 19/20, vertikal","Schulverlag+",null,"f",21,null,0]
["Verschiedenes","P90.1528","schul-planer.ch 19/20, horizontal","Schulverlag+",null,"f",21,null,0]
["Verschiedenes","P90.1529","schul-planer.ch, Ordner leer","Schulverlag+",null,"f",12,null,0]
["Verschiedenes","P90.1530","schul-planer.ch, Register","Schulverlag+",null,"f",9,null,0]
["Verschiedenes","P90.1525","Präsenzjournal 19/20","Ingold",null,"f",18.5,null,0]
["Verschiedenes","P90.2544","Unterrichtsheft, Ausgabe U (5mm kariert) ","VfU",null,"f",15,null,0]
["Verschiedenes","P90.2547","Notenheft für Klassenlehrperson","VfU",null,"f",12,null,0]
["Verschiedenes","P90.2548","Aufgaben- und Elternkontaktheft","Fiba",null,"f",3.5,null,0]
["Verschiedenes","P90.2549","Kontakt- und Aufgabenheft 2019/20","Ingold",null,"f",5.15,null,0]
[]
["Verschiedenes","P90.1747","Schulkontrolle ","LVUR",null,"o",5.5,null,0]
["Verschiedenes","P90.1800","Zeugnismappe (für neu eintr. Kinder)","LVUR",null,"o",9,null,0]
["Verschiedenes","P90.1805","Zeugnisblätter PC-Fassung (50 Ex.)","LVUR",null,"o",8.4,null,0]
[]
["Verschiedenes","P90.1752","Schulärztliches Untersuchungsblatt Knaben","LVUR",null,"o",2,null,0]
["Verschiedenes","P90.1753","Schulärztliches Untersuchungsblatt Mädchen","LVUR",null,"o",2,null,0]
["Verschiedenes","P90.2103","Zahnbürste S39 (Ersatz)","Profimed","3.-6.","f",0,null,0]
[]
["Verschiedenes","P90.2190","Lichtblick für helle Köpfe","LMVZ",null,"f",40.4,null,0]
["Verschiedenes","P90.2555","Bücher-Kontrollzettel (100 Ex.)","LMVZ",null,"f",11.4,null,0]
["Verschiedenes"]
["Verschiedenes","P90.3002","Krisenkompass","Schulverlag+","1.-9.","f",85,null,0]
["Verschiedenes","P90.3003","Lerncoaching im Unterricht","Schulverlag+","1.-9.","f",38,null,0]
["Verschiedenes","P60.2903","Bewegungspausen","LMVZ","1.-9.","f",25,null,0]
["Verschiedenes","P60.2911","Bewegung in die Schule (Kartei)","Ingold","1.-9.","f",125,null,0]
["Verschiedenes","P90.3005","AdL - Altersdurchmischtes Lernen","Schulverlag+","1.-6.","f",48,null,0]
["Verschiedenes","P90.3006","Stärken entdecken - erfassen - entwickeln","Schulverlag+","1.-9.","f",44,null,0]
["Verschiedenes","P90.3007","Projektorientiert arbeiten","Schulverlag+","3.-6.","f",48,null,0]
["Verschiedenes","P90.3008","Körper und Lernen","Schulverlag+","KG-9.","f",38,null,0]
["Verschiedenes","P90.3009","Altersdurchmischtes Lernen entwickeln","Schulverlag+","1.-6.","f",48,null,0]
["Verschiedenes","P90.3010","Kompetenzorientierte Aufgaben ","Schulverlag+","1.-6.","f",28,null,0]
["Verschiedenes","P90.3012","Mit Lernlandkarten unterrichten und lernen","Schulverlag+","1.-6.","f",38,null,0]
["Verschiedenes","P90.3013","Lernlandkarte Deutsch","Schulverlag+","3.-4.","f",11.5,null,0]
["Verschiedenes","P90.3014","Lernlandkarte Deutsch","Schulverlag+","4.-6.","f",11.5,null,0]
[]
["Verschiedenes","P90.3100","Das leere Buch, SpiralFlex A4+","Ingold","KG-9.","f",12.5,null,0]
["Verschiedenes","P90.3110","Das leere Buch, SpiralFlex light A4+","Ingold","KG-9.","f",9.9,null,0]
["Verschiedenes","P90.3120","Das leere Buch, gebunden A4","Ingold","KG-9.","f",13.5,null,0]
["Verschiedenes","P90.3130","Das leere Buch, Quadro 21x21","Ingold","KG-9.","f",10.7,null,0]
[]
[null,"Artikeltitel",null,"ISBN",null,null,"VKP"]
["Weitere Artikel Wünsche",null,null,null,null,null,null,null,0]
["Weitere Artikel Wünsche",null,null,null,null,null,null,null,0]
["Weitere Artikel Wünsche",null,null,null,null,null,null,null,0]
["Weitere Artikel Wünsche",null,null,null,null,null,null,null,0]
["Weitere Artikel Wünsche",null,null,null,null,null,null,null,0]
["Weitere Artikel Wünsche",null,null,null,null,null,null,null,0]
["Weitere Artikel Wünsche",null,null,null,null,null,null,null,0]
["Weitere Artikel Wünsche",null,null,null,null,null,null,null,0]
["Weitere Artikel Wünsche",null,null,null,null,null,null,null,0]
["Weitere Artikel Wünsche",null,null,null,null,null,null,null,0]
["Weitere Artikel Wünsche",null,null,null,null,null,null,null,0]
["Weitere Artikel Wünsche",null,null,null,null,null,null,null,0]
["Weitere Artikel Wünsche",null,null,null,null,null,null,null,0]
["Weitere Artikel Wünsche",null,null,null,null,null,null,null,0]
["Weitere Artikel Wünsche",null,null,null,null,null,null,null,0]
["Weitere Artikel Wünsche",null,null,null,null,null,null,null,0]
["Weitere Artikel Wünsche",null,null,null,null,null,null,null,0]
["Weitere Artikel Wünsche",null,null,null,null,null,null,null,0]
["Weitere Artikel Wünsche",null,null,null,null,null,null,null,{"$f":"G74*H74","v":0}]
["Weitere Artikel Wünsche",null,null,null,null,null,null,null,0]
["Weitere Artikel Wünsche",null,null,null,null,null,null,null,0]
["Weitere Artikel Wünsche",null,null,null,null,null,null,null,0]
["Weitere Artikel Wünsche",null,null,null,null,null,null,null,0]
["Weitere Artikel Wünsche",null,null,null,null,null,null,null,0]
["Weitere Artikel Wünsche",null,null,null,null,null,null,null,0]
["Weitere Artikel Wünsche",null,null,null,null,null,null,null,0]
["Weitere Artikel Wünsche",null,null,null,null,null,null,null,0]
["Weitere Artikel Wünsche",null,null,null,null,null,null,null,0]
["Weitere Artikel Wünsche",null,null,null,null,null,null,null,0]
[]
["Bitte genauen Titel und ISBN-Nummer angeben!"]

{"sheet":"Tabelle1","index":10,"n_rows":0,"n_cols":0,"rows_kept":0,"cut":false,"hidden":false,"merged":[]}